Workbook

Sheet FONT
B1: 128 | C1: 64 | D1: 32 | E1: 16 | F1: 8 | G1: 4 | H1: 2 | I1: 1 | O1: 128 | P1: 64 | Q1: 32 | R1: 16 | S1: 8 | T1: 4 | U1: 2 | V1: 1
A2: 224 | B2: 0 | C2: 1 | D2: 2 | E2: 3 | F2: 4 | G2: 5 | H2: 6 | K2: =cat(K3:K10,",",",") -> #7C,#FE,#EE,#EE,#FE,#FE,#EE,#00 | L2: 0 | M2: ="POKE#"&DEC2HEX(224*8+L2*8)&","&OFFSET($K$2,L2*10,0) -> POKE#700,#7C,#FE,#EE,#EE,#FE,#FE,#EE,#00 | O2: 0 | P2: 1 | Q2: 2 | R2: 3 | S2: 4 | T2: 5 | U2: 6 | V2: 7 | W2: 32 | Z2: 32 | AA2: 0 | AB2: 0 | AC2: 0 | AD2: 0 | AE2: 0 | AF2: 0 | AG2: 0 | AH2: 0
A3: 0 | B3: 0 | C3: 1 | D3: 1 | E3: 1 | F3: 1 | G3: 1 | H3: 0 | I3: 0 | K3: ="#"&RIGHT("0"&DEC2HEX(B3*128+C3*64+D3*32+E3*16+F3*8+G3*4+H3*2+I3),2) -> #7C | L3: 1 | M3: ="POKE#"&DEC2HEX(224*8+L3*8)&","&OFFSET($K$2,L3*10,0) -> POKE#708,#FC,#FE,#F6,#FC,#F6,#FE,#FC,#00 | O3: =IF(_xlfn.BITAND($X3,O$1),1,0) -> 0 | P3: 0 | Q3: 0 | R3: 0 | S3: 0 | T3: 0 | U3: 0 | V3: 0 | W3: 0 | X3: =VLOOKUP(W2,$Z$2:$AH$225,W3+2) -> 0 | Z3: 33 | AA3: 16 | AB3: 16 | AC3: 16 | AD3: 16 | AE3: 16 | AF3: 0 | AG3: 16 | AH3: 0
A4: 1 | B4: 1 | C4: 1 | D4: 1 | E4: 1 | F4: 1 | G4: 1 | H4: 1 | I4: 0 | K4: ="#"&RIGHT("0"&DEC2HEX(B4*128+C4*64+D4*32+E4*16+F4*8+G4*4+H4*2+I4),2) -> #FE | L4: 2 | M4: POKE#710,#7C,#FE,#FE,#F8,#FE,#FE,#7C,#00 | O4: 0 | P4: 0 | Q4: 0 | R4: 0 | S4: 0 | T4: 0 | U4: 0 | V4: 0 | W4: 1 | X4: =VLOOKUP(W2,$Z$2:$AH$225,W4+2) -> 0 | Z4: 34 | AA4: 40 | AB4: 40 | AC4: 0 | AD4: 0 | AE4: 0 | AF4: 0 | AG4: 0 | AH4: 0
A5: 2 | B5: 1 | C5: 1 | D5: 1 | E5: 0 | F5: 1 | G5: 1 | H5: 1 | I5: 0 | K5: #EE | L5: 3 | M5: POKE#718,#FC,#FE,#FE,#F6,#FE,#FE,#FC,#00 | O5: 0 | P5: 0 | Q5: 0 | R5: 0 | S5: 0 | T5: 0 | U5: 0 | V5: 0 | W5: 2 | X5: =VLOOKUP(W2,$Z$2:$AH$225,W5+2) -> 0 | Z5: 35 | AA5: 40 | AB5: 40 | AC5: 124 | AD5: 40 | AE5: 124 | AF5: 40 | AG5: 40 | AH5: 0
A6: 3 | B6: 1 | C6: 1 | D6: 1 | E6: 0 | F6: 1 | G6: 1 | H6: 1 | I6: 0 | K6: #EE | L6: 4 | M6: POKE#720,#FE,#FE,#FC,#FE,#FC,#FE,#FE,#00 | O6: 0 | P6: 0 | Q6: 0 | R6: 0 | S6: 0 | T6: 0 | U6: 0 | V6: 0 | W6: 3 | X6: =VLOOKUP(W2,$Z$2:$AH$225,W6+2) -> 0 | Z6: 36 | AA6: 16 | AB6: 60 | AC6: 80 | AD6: 56 | AE6: 20 | AF6: 120 | AG6: 16 | AH6: 0
A7: 4 | B7: 1 | C7: 1 | D7: 1 | E7: 1 | F7: 1 | G7: 1 | H7: 1 | I7: 0 | K7: #FE | L7: 5 | M7: POKE#728,#FE,#FE,#FC,#FE,#FE,#FC,#FC,#00 | O7: 0 | P7: 0 | Q7: 0 | R7: 0 | S7: 0 | T7: 0 | U7: 0 | V7: 0 | W7: 4 | X7: =VLOOKUP(W2,$Z$2:$AH$225,W7+2) -> 0 | Z7: 37 | AA7: 96 | AB7: 100 | AC7: 8 | AD7: 16 | AE7: 32 | AF7: 76 | AG7: 12 | AH7: 0
A8: 5 | B8: 1 | C8: 1 | D8: 1 | E8: 1 | F8: 1 | G8: 1 | H8: 1 | I8: 0 | K8: #FE | L8: 6 | M8: POKE#730,#7C,#FE,#F8,#F6,#FA,#FE,#7C,#00 | O8: 0 | P8: 0 | Q8: 0 | R8: 0 | S8: 0 | T8: 0 | U8: 0 | V8: 0 | W8: 5 | X8: =VLOOKUP(W2,$Z$2:$AH$225,W8+2) -> 0 | Z8: 38 | AA8: 32 | AB8: 80 | AC8: 80 | AD8: 32 | AE8: 84 | AF8: 72 | AG8: 52 | AH8: 0
A9: 6 | B9: 1 | C9: 1 | D9: 1 | E9: 0 | F9: 1 | G9: 1 | H9: 1 | I9: 0 | K9: #EE | L9: 7 | M9: POKE#738,#EE,#FE,#FE,#FE,#FE,#FE,#EE,#00 | O9: 0 | P9: 0 | Q9: 0 | R9: 0 | S9: 0 | T9: 0 | U9: 0 | V9: 0 | W9: 6 | X9: =VLOOKUP(W2,$Z$2:$AH$225,W9+2) -> 0 | Z9: 39 | AA9: 8 | AB9: 16 | AC9: 32 | AD9: 0 | AE9: 0 | AF9: 0 | AG9: 0 | AH9: 0
A10: 7 | B10: 0 | C10: 0 | D10: 0 | E10: 0 | F10: 0 | G10: 0 | H10: 0 | I10: 0 | K10: #00 | L10: 8 | M10: POKE#740,#FE,#7C,#7C,#7C,#7C,#7C,#FE,#00 | O10: 0 | P10: 0 | Q10: 0 | R10: 0 | S10: 0 | T10: 0 | U10: 0 | V10: 0 | W10: 7 | X10: =VLOOKUP(W2,$Z$2:$AH$225,W10+2) -> 0 | Z10: 40 | AA10: 8 | AB10: 16 | AC10: 32 | AD10: 32 | AE10: 32 | AF10: 16 | AG10: 8 | AH10: 0
L11: 9 | M11: POKE#748,#FE,#3C,#3C,#3C,#3C,#FC,#78,#00 | Z11: 41 | AA11: 32 | AB11: 16 | AC11: 8 | AD11: 8 | AE11: 8 | AF11: 16 | AG11: 32 | AH11: 0
A12: =A2+1 -> 225 | B12: 0 | C12: 1 | D12: 2 | E12: 3 | F12: 4 | G12: 5 | H12: 6 | I12: 7 | K12: =cat(K13:K20,",",",") -> #FC,#FE,#F6,#FC,#F6,#FE,#FC,#00 | L12: 10 | M12: POKE#750,#DE,#FE,#FC,#F8,#FC,#FE,#DE,#00 | O12: 0 | P12: 1 | Q12: 2 | R12: 3 | S12: 4 | T12: 5 | U12: 6 | V12: 7 | W12: 33 | Z12: 42 | AA12: 16 | AB12: 84 | AC12: 56 | AD12: 16 | AE12: 56 | AF12: 84 | AG12: 16 | AH12: 0
A13: 0 | B13: 1 | C13: 1 | D13: 1 | E13: 1 | F13: 1 | G13: 1 | H13: 0 | I13: 0 | K13: ="#"&RIGHT("0"&DEC2HEX(B13*128+C13*64+D13*32+E13*16+F13*8+G13*4+H13*2+I13),2) -> #FC | L13: 11 | M13: POKE#758,#F0,#F0,#FC,#FC,#FC,#FC,#FC,#00 | O13: =IF(_xlfn.BITAND($X13,O$1),1,0) -> 0 | P13: 0 | Q13: 0 | R13: 1 | S13: 0 | T13: 0 | U13: 0 | V13: 0 | W13: 0 | X13: =VLOOKUP(W12,$Z$2:$AH$225,W13+2) -> 16 | Z13: 43 | AA13: 0 | AB13: 16 | AC13: 16 | AD13: 124 | AE13: 16 | AF13: 16 | AG13: 0 | AH13: 0
A14: 1 | B14: 1 | C14: 1 | D14: 1 | E14: 1 | F14: 1 | G14: 1 | H14: 1 | I14: 0 | K14: ="#"&RIGHT("0"&DEC2HEX(B14*128+C14*64+D14*32+E14*16+F14*8+G14*4+H14*2+I14),2) -> #FE | L14: 12 | M14: POKE#760,#EE,#FE,#FE,#FE,#FE,#FE,#D6,#00 | O14: 0 | P14: 0 | Q14: 0 | R14: 1 | S14: 0 | T14: 0 | U14: 0 | V14: 0 | W14: 1 | X14: =VLOOKUP(W12,$Z$2:$AH$225,W14+2) -> 16 | Z14: 44 | AA14: 0 | AB14: 0 | AC14: 0 | AD14: 0 | AE14: 16 | AF14: 16 | AG14: 32 | AH14: 0
A15: 2 | B15: 1 | C15: 1 | D15: 1 | E15: 1 | F15: 0 | G15: 1 | H15: 1 | I15: 0 | K15: #F6 | L15: 13 | M15: POKE#768,#CE,#EE,#FE,#FE,#FE,#EE,#E6,#00 | O15: 0 | P15: 0 | Q15: 0 | R15: 1 | S15: 0 | T15: 0 | U15: 0 | V15: 0 | W15: 2 | X15: =VLOOKUP(W12,$Z$2:$AH$225,W15+2) -> 16 | Z15: 45 | AA15: 0 | AB15: 0 | AC15: 0 | AD15: 124 | AE15: 0 | AF15: 0 | AG15: 0 | AH15: 0
A16: 3 | B16: 1 | C16: 1 | D16: 1 | E16: 1 | F16: 1 | G16: 1 | H16: 0 | I16: 0 | K16: #FC | L16: 14 | M16: POKE#770,#7C,#FE,#FE,#EE,#FE,#FE,#7C,#00 | O16: 0 | P16: 0 | Q16: 0 | R16: 1 | S16: 0 | T16: 0 | U16: 0 | V16: 0 | W16: 3 | X16: =VLOOKUP(W12,$Z$2:$AH$225,W16+2) -> 16 | Z16: 46 | AA16: 0 | AB16: 0 | AC16: 0 | AD16: 0 | AE16: 0 | AF16: 48 | AG16: 48 | AH16: 0
A17: 4 | B17: 1 | C17: 1 | D17: 1 | E17: 1 | F17: 0 | G17: 1 | H17: 1 | I17: 0 | K17: #F6 | L17: 15 | M17: POKE#778,#FC,#FE,#F6,#FE,#FC,#F8,#F8,#00 | O17: 0 | P17: 0 | Q17: 0 | R17: 1 | S17: 0 | T17: 0 | U17: 0 | V17: 0 | W17: 4 | X17: =VLOOKUP(W12,$Z$2:$AH$225,W17+2) -> 16 | Z17: 47 | AA17: 0 | AB17: 0 | AC17: 4 | AD17: 8 | AE17: 16 | AF17: 32 | AG17: 64 | AH17: 0
A18: 5 | B18: 1 | C18: 1 | D18: 1 | E18: 1 | F18: 1 | G18: 1 | H18: 1 | I18: 0 | K18: #FE | L18: 16 | M18: POKE#780,#7C,#FE,#FE,#FE,#F2,#F4,#7A,#00 | O18: 0 | P18: 0 | Q18: 0 | R18: 0 | S18: 0 | T18: 0 | U18: 0 | V18: 0 | W18: 5 | X18: =VLOOKUP(W12,$Z$2:$AH$225,W18+2) -> 0 | Z18: 48 | AA18: 56 | AB18: 68 | AC18: 76 | AD18: 84 | AE18: 100 | AF18: 68 | AG18: 56 | AH18: 0
A19: 6 | B19: 1 | C19: 1 | D19: 1 | E19: 1 | F19: 1 | G19: 1 | H19: 0 | I19: 0 | K19: #FC | L19: 17 | M19: POKE#788,#FC,#FE,#FA,#FE,#FE,#FC,#F6,#00 | O19: 0 | P19: 0 | Q19: 0 | R19: 1 | S19: 0 | T19: 0 | U19: 0 | V19: 0 | W19: 6 | X19: =VLOOKUP(W12,$Z$2:$AH$225,W19+2) -> 16 | Z19: 49 | AA19: 16 | AB19: 48 | AC19: 80 | AD19: 16 | AE19: 16 | AF19: 16 | AG19: 124 | AH19: 0
A20: 7 | B20: 0 | C20: 0 | D20: 0 | E20: 0 | F20: 0 | G20: 0 | H20: 0 | I20: 0 | K20: #00 | L20: 18 | M20: POKE#790,#7C,#FE,#FA,#7C,#BE,#FE,#7C,#00 | O20: 0 | P20: 0 | Q20: 0 | R20: 0 | S20: 0 | T20: 0 | U20: 0 | V20: 0 | W20: 7 | X20: =VLOOKUP(W12,$Z$2:$AH$225,W20+2) -> 0 | Z20: 50 | AA20: 56 | AB20: 68 | AC20: 4 | AD20: 4 | AE20: 24 | AF20: 96 | AG20: 124 | AH20: 0
L21: 19 | M21: POKE#798,#FE,#FE,#FE,#FE,#FE,#FE,#7C,#00 | Z21: 51 | AA21: 56 | AB21: 68 | AC21: 4 | AD21: 24 | AE21: 4 | AF21: 68 | AG21: 56 | AH21: 0
A22: =A12+1 -> 226 | B22: 0 | C22: 1 | D22: 2 | E22: 3 | F22: 4 | G22: 5 | H22: 6 | I22: 7 | K22: =cat(K23:K30,",",",") -> #7C,#FE,#FE,#F8,#FE,#FE,#7C,#00 | L22: 20 | M22: POKE#7A0,#EE,#FE,#FE,#FE,#FE,#FE,#7C,#00 | O22: 0 | P22: 1 | Q22: 2 | R22: 3 | S22: 4 | T22: 5 | U22: 6 | V22: 7 | W22: 34 | Z22: 52 | AA22: 24 | AB22: 40 | AC22: 72 | AD22: 72 | AE22: 72 | AF22: 124 | AG22: 8 | AH22: 0
A23: 0 | B23: 0 | C23: 1 | D23: 1 | E23: 1 | F23: 1 | G23: 1 | H23: 0 | I23: 0 | K23: ="#"&RIGHT("0"&DEC2HEX(B23*128+C23*64+D23*32+E23*16+F23*8+G23*4+H23*2+I23),2) -> #7C | L23: 21 | M23: POKE#7A8,#EE,#FE,#FE,#FE,#FE,#7C,#7C,#00 | O23: =IF(_xlfn.BITAND($X23,O$1),1,0) -> 0 | P23: 0 | Q23: 1 | R23: 0 | S23: 1 | T23: 0 | U23: 0 | V23: 0 | W23: 0 | X23: =VLOOKUP(W22,$Z$2:$AH$225,W23+2) -> 40 | Z23: 53 | AA23: 124 | AB23: 64 | AC23: 120 | AD23: 4 | AE23: 4 | AF23: 68 | AG23: 56 | AH23: 0
A24: 1 | B24: 1 | C24: 1 | D24: 1 | E24: 1 | F24: 1 | G24: 1 | H24: 1 | I24: 0 | K24: ="#"&RIGHT("0"&DEC2HEX(B24*128+C24*64+D24*32+E24*16+F24*8+G24*4+H24*2+I24),2) -> #FE | L24: 22 | M24: POKE#7B0,#C6,#D6,#FE,#FE,#FE,#FE,#6C,#00 | O24: 0 | P24: 0 | Q24: 1 | R24: 0 | S24: 1 | T24: 0 | U24: 0 | V24: 0 | W24: 1 | X24: =VLOOKUP(W22,$Z$2:$AH$225,W24+2) -> 40 | Z24: 54 | AA24: 56 | AB24: 64 | AC24: 120 | AD24: 68 | AE24: 68 | AF24: 68 | AG24: 56 | AH24: 0
A25: 2 | B25: 1 | C25: 1 | D25: 1 | E25: 1 | F25: 1 | G25: 1 | H25: 1 | I25: 0 | K25: #FE | L25: 23 | M25: POKE#7B8,#EE,#FE,#FE,#7C,#FE,#FE,#EE,#00 | O25: 0 | P25: 0 | Q25: 0 | R25: 0 | S25: 0 | T25: 0 | U25: 0 | V25: 0 | W25: 2 | X25: =VLOOKUP(W22,$Z$2:$AH$225,W25+2) -> 0 | Z25: 55 | AA25: 124 | AB25: 68 | AC25: 4 | AD25: 8 | AE25: 8 | AF25: 16 | AG25: 16 | AH25: 0
A26: 3 | B26: 1 | C26: 1 | D26: 1 | E26: 1 | F26: 1 | G26: 0 | H26: 0 | I26: 0 | K26: #F8 | L26: 24 | M26: POKE#7C0,#EE,#FE,#FE,#FE,#FE,#38,#38,#00 | O26: 0 | P26: 0 | Q26: 0 | R26: 0 | S26: 0 | T26: 0 | U26: 0 | V26: 0 | W26: 3 | X26: =VLOOKUP(W22,$Z$2:$AH$225,W26+2) -> 0 | Z26: 56 | AA26: 56 | AB26: 68 | AC26: 68 | AD26: 56 | AE26: 68 | AF26: 68 | AG26: 56 | AH26: 0
A27: 4 | B27: 1 | C27: 1 | D27: 1 | E27: 1 | F27: 1 | G27: 1 | H27: 1 | I27: 0 | K27: #FE | L27: 25 | M27: POKE#7C8,#FE,#7E,#FE,#FE,#FE,#FC,#FE,#00 | O27: 0 | P27: 0 | Q27: 0 | R27: 0 | S27: 0 | T27: 0 | U27: 0 | V27: 0 | W27: 4 | X27: =VLOOKUP(W22,$Z$2:$AH$225,W27+2) -> 0 | Z27: 57 | AA27: 56 | AB27: 68 | AC27: 68 | AD27: 68 | AE27: 60 | AF27: 4 | AG27: 56 | AH27: 0
A28: 5 | B28: 1 | C28: 1 | D28: 1 | E28: 1 | F28: 1 | G28: 1 | H28: 1 | I28: 0 | K28: #FE | L28: 26 | M28: POKE#7D0,#00,#00,#00,#00,#00,#00,#00,#00 | O28: 0 | P28: 0 | Q28: 0 | R28: 0 | S28: 0 | T28: 0 | U28: 0 | V28: 0 | W28: 5 | X28: =VLOOKUP(W22,$Z$2:$AH$225,W28+2) -> 0 | Z28: 58 | AA28: 0 | AB28: 0 | AC28: 16 | AD28: 0 | AE28: 0 | AF28: 16 | AG28: 0 | AH28: 0
A29: 6 | B29: 0 | C29: 1 | D29: 1 | E29: 1 | F29: 1 | G29: 1 | H29: 0 | I29: 0 | K29: #7C | L29: 27 | M29: POKE#7D8,#00,#00,#00,#00,#00,#00,#00,#00 | O29: 0 | P29: 0 | Q29: 0 | R29: 0 | S29: 0 | T29: 0 | U29: 0 | V29: 0 | W29: 6 | X29: =VLOOKUP(W22,$Z$2:$AH$225,W29+2) -> 0 | Z29: 59 | AA29: 0 | AB29: 0 | AC29: 16 | AD29: 0 | AE29: 16 | AF29: 16 | AG29: 32 | AH29: 0
A30: 7 | B30: 0 | C30: 0 | D30: 0 | E30: 0 | F30: 0 | G30: 0 | H30: 0 | I30: 0 | K30: #00 | L30: 28 | M30: POKE#7E0,#00,#00,#00,#00,#00,#00,#00,#00 | O30: 0 | P30: 0 | Q30: 0 | R30: 0 | S30: 0 | T30: 0 | U30: 0 | V30: 0 | W30: 7 | X30: =VLOOKUP(W22,$Z$2:$AH$225,W30+2) -> 0 | Z30: 60 | AA30: 8 | AB30: 16 | AC30: 32 | AD30: 64 | AE30: 32 | AF30: 16 | AG30: 8 | AH30: 0
L31: 29 | M31: POKE#7E8,#00,#00,#00,#00,#00,#00,#00,#00 | Z31: 61 | AA31: 0 | AB31: 0 | AC31: 124 | AD31: 0 | AE31: 124 | AF31: 0 | AG31: 0 | AH31: 0
A32: =A22+1 -> 227 | B32: 0 | C32: 1 | D32: 2 | E32: 3 | F32: 4 | G32: 5 | H32: 6 | I32: 7 | K32: =cat(K33:K40,",",",") -> #FC,#FE,#FE,#F6,#FE,#FE,#FC,#00 | L32: 30 | M32: POKE#7F0,#00,#00,#00,#00,#00,#00,#00,#00 | O32: 0 | P32: 1 | Q32: 2 | R32: 3 | S32: 4 | T32: 5 | U32: 6 | V32: 7 | W32: 35 | Z32: 62 | AA32: 32 | AB32: 16 | AC32: 8 | AD32: 4 | AE32: 8 | AF32: 16 | AG32: 32 | AH32: 0
A33: 0 | B33: 1 | C33: 1 | D33: 1 | E33: 1 | F33: 1 | G33: 1 | H33: 0 | I33: 0 | K33: ="#"&RIGHT("0"&DEC2HEX(B33*128+C33*64+D33*32+E33*16+F33*8+G33*4+H33*2+I33),2) -> #FC | L33: 31 | M33: POKE#7F8,#00,#00,#00,#00,#00,#00,#00,#00 | O33: =IF(_xlfn.BITAND($X33,O$1),1,0) -> 0 | P33: 0 | Q33: 1 | R33: 0 | S33: 1 | T33: 0 | U33: 0 | V33: 0 | W33: 0 | X33: 40 | Z33: 63 | AA33: 56 | AB33: 68 | AC33: 68 | AD33: 8 | AE33: 16 | AF33: 0 | AG33: 16 | AH33: 0
A34: 1 | B34: 1 | C34: 1 | D34: 1 | E34: 1 | F34: 1 | G34: 1 | H34: 1 | I34: 0 | K34: ="#"&RIGHT("0"&DEC2HEX(B34*128+C34*64+D34*32+E34*16+F34*8+G34*4+H34*2+I34),2) -> #FE | O34: 0 | P34: 0 | Q34: 1 | R34: 0 | S34: 1 | T34: 0 | U34: 0 | V34: 0 | W34: 1 | X34: 40 | Z34: 64 | AA34: 56 | AB34: 68 | AC34: 4 | AD34: 52 | AE34: 84 | AF34: 84 | AG34: 56 | AH34: 0
A35: 2 | B35: 1 | C35: 1 | D35: 1 | E35: 1 | F35: 1 | G35: 1 | H35: 1 | I35: 0 | K35: #FE | M35: 10 CLS | O35: 0 | P35: 1 | Q35: 1 | R35: 1 | S35: 1 | T35: 1 | U35: 0 | V35: 0 | W35: 2 | X35: 124 | Z35: 65 | AA35: 56 | AB35: 68 | AC35: 68 | AD35: 68 | AE35: 124 | AF35: 68 | AG35: 68 | AH35: 0
A36: 3 | B36: 1 | C36: 1 | D36: 1 | E36: 1 | F36: 0 | G36: 1 | H36: 1 | I36: 0 | K36: #F6 | M36: 20 A="ABCDEFG":GSB@P | O36: 0 | P36: 0 | Q36: 1 | R36: 0 | S36: 1 | T36: 0 | U36: 0 | V36: 0 | W36: 3 | X36: =VLOOKUP(W32,$Z$2:$AH$225,W36+2) -> 40 | Z36: 66 | AA36: 120 | AB36: 36 | AC36: 36 | AD36: 56 | AE36: 36 | AF36: 36 | AG36: 120 | AH36: 0
A37: 4 | B37: 1 | C37: 1 | D37: 1 | E37: 1 | F37: 1 | G37: 1 | H37: 1 | I37: 0 | K37: #FE | M37: 30 A="HIJKLMN":GSB@P | O37: 0 | P37: 1 | Q37: 1 | R37: 1 | S37: 1 | T37: 1 | U37: 0 | V37: 0 | W37: 4 | X37: 124 | Z37: 67 | AA37: 56 | AB37: 68 | AC37: 64 | AD37: 64 | AE37: 64 | AF37: 68 | AG37: 56 | AH37: 0
A38: 5 | B38: 1 | C38: 1 | D38: 1 | E38: 1 | F38: 1 | G38: 1 | H38: 1 | I38: 0 | K38: #FE | M38: 40 A="OPQRSTU":GSB@P | O38: 0 | P38: 0 | Q38: 1 | R38: 0 | S38: 1 | T38: 0 | U38: 0 | V38: 0 | W38: 5 | X38: 40 | Z38: 68 | AA38: 120 | AB38: 36 | AC38: 36 | AD38: 36 | AE38: 36 | AF38: 36 | AG38: 120 | AH38: 0
A39: 6 | B39: 1 | C39: 1 | D39: 1 | E39: 1 | F39: 1 | G39: 1 | H39: 0 | I39: 0 | K39: #FC | M39: 50 A="VWXYZ":GSB@P | O39: 0 | P39: 0 | Q39: 1 | R39: 0 | S39: 1 | T39: 0 | U39: 0 | V39: 0 | W39: 6 | X39: 40 | Z39: 69 | AA39: 124 | AB39: 64 | AC39: 64 | AD39: 124 | AE39: 64 | AF39: 64 | AG39: 124 | AH39: 0
A40: 7 | B40: 0 | C40: 0 | D40: 0 | E40: 0 | F40: 0 | G40: 0 | H40: 0 | I40: 0 | K40: #00 | M40: 60 END | O40: 0 | P40: 0 | Q40: 0 | R40: 0 | S40: 0 | T40: 0 | U40: 0 | V40: 0 | W40: 7 | X40: 0 | Z40: 70 | AA40: 124 | AB40: 64 | AC40: 64 | AD40: 124 | AE40: 64 | AF40: 64 | AG40: 64 | AH40: 0
M41: 70 @P:P=0 | Z41: 71 | AA41: 56 | AB41: 68 | AC41: 64 | AD41: 64 | AE41: 76 | AF41: 68 | AG41: 60 | AH41: 0
A42: =A32+1 -> 228 | B42: 0 | C42: 1 | D42: 2 | E42: 3 | F42: 4 | G42: 5 | H42: 6 | I42: 7 | K42: =cat(K43:K50,",",",") -> #FE,#FE,#FC,#FE,#FC,#FE,#FE,#00 | M42: 80 @LP:C=PEEK(A+P):IFC=34?:RTN | O42: 0 | P42: 1 | Q42: 2 | R42: 3 | S42: 4 | T42: 5 | U42: 6 | V42: 7 | W42: 36 | Z42: 72 | AA42: 68 | AB42: 68 | AC42: 68 | AD42: 124 | AE42: 68 | AF42: 68 | AG42: 68 | AH42: 0
A43: 0 | B43: 1 | C43: 1 | D43: 1 | E43: 1 | F43: 1 | G43: 1 | H43: 1 | I43: 0 | K43: ="#"&RIGHT("0"&DEC2HEX(B43*128+C43*64+D43*32+E43*16+F43*8+G43*4+H43*2+I43),2) -> #FE | M43: 90 IF(C>64)AND(C<91)C=C+224-65 | O43: =IF(_xlfn.BITAND($X43,O$1),1,0) -> 0 | P43: 0 | Q43: 0 | R43: 1 | S43: 0 | T43: 0 | U43: 0 | V43: 0 | W43: 0 | X43: 16 | Z43: 73 | AA43: 56 | AB43: 16 | AC43: 16 | AD43: 16 | AE43: 16 | AF43: 16 | AG43: 56 | AH43: 0
A44: 1 | B44: 1 | C44: 1 | D44: 1 | E44: 1 | F44: 1 | G44: 1 | H44: 1 | I44: 0 | K44: ="#"&RIGHT("0"&DEC2HEX(B44*128+C44*64+D44*32+E44*16+F44*8+G44*4+H44*2+I44),2) -> #FE | M44: 100 ?CHR$(C);:P=P+1:GOTO@LP | O44: 0 | P44: 0 | Q44: 1 | R44: 1 | S44: 1 | T44: 1 | U44: 0 | V44: 0 | W44: 1 | X44: 60 | Z44: 74 | AA44: 28 | AB44: 8 | AC44: 8 | AD44: 8 | AE44: 8 | AF44: 72 | AG44: 48 | AH44: 0
A45: 2 | B45: 1 | C45: 1 | D45: 1 | E45: 1 | F45: 1 | G45: 1 | H45: 0 | I45: 0 | K45: #FC | O45: 0 | P45: 1 | Q45: 0 | R45: 1 | S45: 0 | T45: 0 | U45: 0 | V45: 0 | W45: 2 | X45: 80 | Z45: 75 | AA45: 68 | AB45: 72 | AC45: 80 | AD45: 96 | AE45: 80 | AF45: 72 | AG45: 68 | AH45: 0
A46: 3 | B46: 1 | C46: 1 | D46: 1 | E46: 1 | F46: 1 | G46: 1 | H46: 1 | I46: 0 | K46: #FE | O46: 0 | P46: 0 | Q46: 1 | R46: 1 | S46: 1 | T46: 0 | U46: 0 | V46: 0 | W46: 3 | X46: =VLOOKUP(W42,$Z$2:$AH$225,W46+2) -> 56 | Z46: 76 | AA46: 64 | AB46: 64 | AC46: 64 | AD46: 64 | AE46: 64 | AF46: 64 | AG46: 124 | AH46: 0
A47: 4 | B47: 1 | C47: 1 | D47: 1 | E47: 1 | F47: 1 | G47: 1 | H47: 0 | I47: 0 | K47: #FC | O47: 0 | P47: 0 | Q47: 0 | R47: 1 | S47: 0 | T47: 1 | U47: 0 | V47: 0 | W47: 4 | X47: 20 | Z47: 77 | AA47: 68 | AB47: 108 | AC47: 108 | AD47: 84 | AE47: 84 | AF47: 84 | AG47: 68 | AH47: 0
A48: 5 | B48: 1 | C48: 1 | D48: 1 | E48: 1 | F48: 1 | G48: 1 | H48: 1 | I48: 0 | K48: #FE | O48: 0 | P48: 1 | Q48: 1 | R48: 1 | S48: 1 | T48: 0 | U48: 0 | V48: 0 | W48: 5 | X48: 120 | Z48: 78 | AA48: 68 | AB48: 100 | AC48: 100 | AD48: 84 | AE48: 76 | AF48: 76 | AG48: 68 | AH48: 0
A49: 6 | B49: 1 | C49: 1 | D49: 1 | E49: 1 | F49: 1 | G49: 1 | H49: 1 | I49: 0 | K49: #FE | O49: 0 | P49: 0 | Q49: 0 | R49: 1 | S49: 0 | T49: 0 | U49: 0 | V49: 0 | W49: 6 | X49: 16 | Z49: 79 | AA49: 56 | AB49: 68 | AC49: 68 | AD49: 68 | AE49: 68 | AF49: 68 | AG49: 56 | AH49: 0
A50: 7 | B50: 0 | C50: 0 | D50: 0 | E50: 0 | F50: 0 | G50: 0 | H50: 0 | I50: 0 | K50: #00 | O50: 0 | P50: 0 | Q50: 0 | R50: 0 | S50: 0 | T50: 0 | U50: 0 | V50: 0 | W50: 7 | X50: 0 | Z50: 80 | AA50: 120 | AB50: 68 | AC50: 68 | AD50: 68 | AE50: 120 | AF50: 64 | AG50: 64 | AH50: 0
Z51: 81 | AA51: 56 | AB51: 68 | AC51: 68 | AD51: 68 | AE51: 84 | AF51: 72 | AG51: 52 | AH51: 0
A52: =A42+1 -> 229 | B52: 0 | C52: 1 | D52: 2 | E52: 3 | F52: 4 | G52: 5 | H52: 6 | I52: 7 | K52: =cat(K53:K60,",",",") -> #FE,#FE,#FC,#FE,#FE,#FC,#FC,#00 | O52: 0 | P52: 1 | Q52: 2 | R52: 3 | S52: 4 | T52: 5 | U52: 6 | V52: 7 | W52: 37 | Z52: 82 | AA52: 120 | AB52: 68 | AC52: 68 | AD52: 68 | AE52: 120 | AF52: 72 | AG52: 68 | AH52: 0
A53: 0 | B53: 1 | C53: 1 | D53: 1 | E53: 1 | F53: 1 | G53: 1 | H53: 1 | I53: 0 | K53: ="#"&RIGHT("0"&DEC2HEX(B53*128+C53*64+D53*32+E53*16+F53*8+G53*4+H53*2+I53),2) -> #FE | O53: =IF(_xlfn.BITAND($X53,O$1),1,0) -> 0 | P53: 1 | Q53: 1 | R53: 0 | S53: 0 | T53: 0 | U53: 0 | V53: 0 | W53: 0 | X53: 96 | Z53: 83 | AA53: 56 | AB53: 68 | AC53: 64 | AD53: 56 | AE53: 4 | AF53: 68 | AG53: 56 | AH53: 0
A54: 1 | B54: 1 | C54: 1 | D54: 1 | E54: 1 | F54: 1 | G54: 1 | H54: 1 | I54: 0 | K54: ="#"&RIGHT("0"&DEC2HEX(B54*128+C54*64+D54*32+E54*16+F54*8+G54*4+H54*2+I54),2) -> #FE | O54: 0 | P54: 1 | Q54: 1 | R54: 0 | S54: 0 | T54: 1 | U54: 0 | V54: 0 | W54: 1 | X54: 100 | Z54: 84 | AA54: 124 | AB54: 16 | AC54: 16 | AD54: 16 | AE54: 16 | AF54: 16 | AG54: 16 | AH54: 0
A55: 2 | B55: 1 | C55: 1 | D55: 1 | E55: 1 | F55: 1 | G55: 1 | H55: 0 | I55: 0 | K55: #FC | O55: 0 | P55: 0 | Q55: 0 | R55: 0 | S55: 1 | T55: 0 | U55: 0 | V55: 0 | W55: 2 | X55: 8 | Z55: 85 | AA55: 68 | AB55: 68 | AC55: 68 | AD55: 68 | AE55: 68 | AF55: 68 | AG55: 56 | AH55: 0
A56: 3 | B56: 1 | C56: 1 | D56: 1 | E56: 1 | F56: 1 | G56: 1 | H56: 1 | I56: 0 | K56: #FE | O56: 0 | P56: 0 | Q56: 0 | R56: 1 | S56: 0 | T56: 0 | U56: 0 | V56: 0 | W56: 3 | X56: =VLOOKUP(W52,$Z$2:$AH$225,W56+2) -> 16 | Z56: 86 | AA56: 68 | AB56: 68 | AC56: 40 | AD56: 40 | AE56: 40 | AF56: 16 | AG56: 16 | AH56: 0
A57: 4 | B57: 1 | C57: 1 | D57: 1 | E57: 1 | F57: 1 | G57: 1 | H57: 1 | I57: 0 | K57: #FE | O57: 0 | P57: 0 | Q57: 1 | R57: 0 | S57: 0 | T57: 0 | U57: 0 | V57: 0 | W57: 4 | X57: 32 | Z57: 87 | AA57: 68 | AB57: 68 | AC57: 84 | AD57: 84 | AE57: 84 | AF57: 40 | AG57: 40 | AH57: 0
A58: 5 | B58: 1 | C58: 1 | D58: 1 | E58: 1 | F58: 1 | G58: 1 | H58: 0 | I58: 0 | K58: #FC | O58: 0 | P58: 1 | Q58: 0 | R58: 0 | S58: 1 | T58: 1 | U58: 0 | V58: 0 | W58: 5 | X58: 76 | Z58: 88 | AA58: 68 | AB58: 68 | AC58: 40 | AD58: 16 | AE58: 40 | AF58: 68 | AG58: 68 | AH58: 0
A59: 6 | B59: 1 | C59: 1 | D59: 1 | E59: 1 | F59: 1 | G59: 1 | H59: 0 | I59: 0 | K59: #FC | O59: 0 | P59: 0 | Q59: 0 | R59: 0 | S59: 1 | T59: 1 | U59: 0 | V59: 0 | W59: 6 | X59: 12 | Z59: 89 | AA59: 68 | AB59: 68 | AC59: 40 | AD59: 16 | AE59: 16 | AF59: 16 | AG59: 16 | AH59: 0
A60: 7 | B60: 0 | C60: 0 | D60: 0 | E60: 0 | F60: 0 | G60: 0 | H60: 0 | I60: 0 | K60: #00 | O60: 0 | P60: 0 | Q60: 0 | R60: 0 | S60: 0 | T60: 0 | U60: 0 | V60: 0 | W60: 7 | X60: 0 | Z60: 90 | AA60: 124 | AB60: 4 | AC60: 8 | AD60: 16 | AE60: 32 | AF60: 64 | AG60: 124 | AH60: 0
Z61: 91 | AA61: 56 | AB61: 32 | AC61: 32 | AD61: 32 | AE61: 32 | AF61: 32 | AG61: 56 | AH61: 0
A62: =A52+1 -> 230 | B62: 0 | C62: 1 | D62: 2 | E62: 3 | F62: 4 | G62: 5 | H62: 6 | I62: 7 | K62: =cat(K63:K70,",",",") -> #7C,#FE,#F8,#F6,#FA,#FE,#7C,#00 | O62: 0 | P62: 1 | Q62: 2 | R62: 3 | S62: 4 | T62: 5 | U62: 6 | V62: 7 | W62: 38 | Z62: 92 | AA62: 0 | AB62: 0 | AC62: 64 | AD62: 32 | AE62: 16 | AF62: 8 | AG62: 4 | AH62: 0
A63: 0 | B63: 0 | C63: 1 | D63: 1 | E63: 1 | F63: 1 | G63: 1 | H63: 0 | I63: 0 | K63: ="#"&RIGHT("0"&DEC2HEX(B63*128+C63*64+D63*32+E63*16+F63*8+G63*4+H63*2+I63),2) -> #7C | O63: =IF(_xlfn.BITAND($X63,O$1),1,0) -> 0 | P63: 0 | Q63: 1 | R63: 0 | S63: 0 | T63: 0 | U63: 0 | V63: 0 | W63: 0 | X63: 32 | Z63: 93 | AA63: 56 | AB63: 8 | AC63: 8 | AD63: 8 | AE63: 8 | AF63: 8 | AG63: 56 | AH63: 0
A64: 1 | B64: 1 | C64: 1 | D64: 1 | E64: 1 | F64: 1 | G64: 1 | H64: 1 | I64: 0 | K64: ="#"&RIGHT("0"&DEC2HEX(B64*128+C64*64+D64*32+E64*16+F64*8+G64*4+H64*2+I64),2) -> #FE | O64: 0 | P64: 1 | Q64: 0 | R64: 1 | S64: 0 | T64: 0 | U64: 0 | V64: 0 | W64: 1 | X64: 80 | Z64: 94 | AA64: 16 | AB64: 40 | AC64: 68 | AD64: 0 | AE64: 0 | AF64: 0 | AG64: 0 | AH64: 0
A65: 2 | B65: 1 | C65: 1 | D65: 1 | E65: 1 | F65: 1 | G65: 0 | H65: 0 | I65: 0 | K65: #F8 | O65: 0 | P65: 1 | Q65: 0 | R65: 1 | S65: 0 | T65: 0 | U65: 0 | V65: 0 | W65: 2 | X65: 80 | Z65: 95 | AA65: 0 | AB65: 0 | AC65: 0 | AD65: 0 | AE65: 0 | AF65: 0 | AG65: 124 | AH65: 0
A66: 3 | B66: 1 | C66: 1 | D66: 1 | E66: 1 | F66: 0 | G66: 1 | H66: 1 | I66: 0 | K66: #F6 | O66: 0 | P66: 0 | Q66: 1 | R66: 0 | S66: 0 | T66: 0 | U66: 0 | V66: 0 | W66: 3 | X66: =VLOOKUP(W62,$Z$2:$AH$225,W66+2) -> 32 | Z66: 96 | AA66: 32 | AB66: 16 | AC66: 8 | AD66: 0 | AE66: 0 | AF66: 0 | AG66: 0 | AH66: 0
A67: 4 | B67: 1 | C67: 1 | D67: 1 | E67: 1 | F67: 1 | G67: 0 | H67: 1 | I67: 0 | K67: #FA | O67: 0 | P67: 1 | Q67: 0 | R67: 1 | S67: 0 | T67: 1 | U67: 0 | V67: 0 | W67: 4 | X67: 84 | Z67: 97 | AA67: 0 | AB67: 0 | AC67: 56 | AD67: 4 | AE67: 60 | AF67: 68 | AG67: 58 | AH67: 0
A68: 5 | B68: 1 | C68: 1 | D68: 1 | E68: 1 | F68: 1 | G68: 1 | H68: 1 | I68: 0 | K68: #FE | O68: 0 | P68: 1 | Q68: 0 | R68: 0 | S68: 1 | T68: 0 | U68: 0 | V68: 0 | W68: 5 | X68: 72 | Z68: 98 | AA68: 64 | AB68: 64 | AC68: 88 | AD68: 100 | AE68: 68 | AF68: 68 | AG68: 120 | AH68: 0
A69: 6 | B69: 0 | C69: 1 | D69: 1 | E69: 1 | F69: 1 | G69: 1 | H69: 0 | I69: 0 | K69: #7C | O69: 0 | P69: 0 | Q69: 1 | R69: 1 | S69: 0 | T69: 1 | U69: 0 | V69: 0 | W69: 6 | X69: 52 | Z69: 99 | AA69: 0 | AB69: 0 | AC69: 56 | AD69: 68 | AE69: 64 | AF69: 68 | AG69: 56 | AH69: 0
A70: 7 | B70: 0 | C70: 0 | D70: 0 | E70: 0 | F70: 0 | G70: 0 | H70: 0 | I70: 0 | K70: #00 | O70: 0 | P70: 0 | Q70: 0 | R70: 0 | S70: 0 | T70: 0 | U70: 0 | V70: 0 | W70: 7 | X70: 0 | Z70: 100 | AA70: 4 | AB70: 4 | AC70: 52 | AD70: 76 | AE70: 68 | AF70: 68 | AG70: 60 | AH70: 0
Z71: 101 | AA71: 0 | AB71: 0 | AC71: 56 | AD71: 68 | AE71: 124 | AF71: 64 | AG71: 56 | AH71: 0
A72: =A62+1 -> 231 | B72: 0 | C72: 1 | D72: 2 | E72: 3 | F72: 4 | G72: 5 | H72: 6 | I72: 7 | K72: =cat(K73:K80,",",",") -> #EE,#FE,#FE,#FE,#FE,#FE,#EE,#00 | O72: 0 | P72: 1 | Q72: 2 | R72: 3 | S72: 4 | T72: 5 | U72: 6 | V72: 7 | W72: 39 | Z72: 102 | AA72: 24 | AB72: 32 | AC72: 32 | AD72: 124 | AE72: 32 | AF72: 32 | AG72: 32 | AH72: 0
A73: 0 | B73: 1 | C73: 1 | D73: 1 | E73: 0 | F73: 1 | G73: 1 | H73: 1 | I73: 0 | K73: ="#"&RIGHT("0"&DEC2HEX(B73*128+C73*64+D73*32+E73*16+F73*8+G73*4+H73*2+I73),2) -> #EE | O73: =IF(_xlfn.BITAND($X73,O$1),1,0) -> 0 | P73: 0 | Q73: 0 | R73: 0 | S73: 1 | T73: 0 | U73: 0 | V73: 0 | W73: 0 | X73: 8 | Z73: 103 | AA73: 0 | AB73: 0 | AC73: 58 | AD73: 68 | AE73: 68 | AF73: 60 | AG73: 4 | AH73: 56
A74: 1 | B74: 1 | C74: 1 | D74: 1 | E74: 1 | F74: 1 | G74: 1 | H74: 1 | I74: 0 | K74: ="#"&RIGHT("0"&DEC2HEX(B74*128+C74*64+D74*32+E74*16+F74*8+G74*4+H74*2+I74),2) -> #FE | O74: 0 | P74: 0 | Q74: 0 | R74: 1 | S74: 0 | T74: 0 | U74: 0 | V74: 0 | W74: 1 | X74: 16 | Z74: 104 | AA74: 64 | AB74: 64 | AC74: 88 | AD74: 100 | AE74: 68 | AF74: 68 | AG74: 68 | AH74: 0
A75: 2 | B75: 1 | C75: 1 | D75: 1 | E75: 1 | F75: 1 | G75: 1 | H75: 1 | I75: 0 | K75: #FE | O75: 0 | P75: 0 | Q75: 1 | R75: 0 | S75: 0 | T75: 0 | U75: 0 | V75: 0 | W75: 2 | X75: 32 | Z75: 105 | AA75: 16 | AB75: 0 | AC75: 48 | AD75: 16 | AE75: 16 | AF75: 16 | AG75: 16 | AH75: 0
A76: 3 | B76: 1 | C76: 1 | D76: 1 | E76: 1 | F76: 1 | G76: 1 | H76: 1 | I76: 0 | K76: #FE | O76: 0 | P76: 0 | Q76: 0 | R76: 0 | S76: 0 | T76: 0 | U76: 0 | V76: 0 | W76: 3 | X76: =VLOOKUP(W72,$Z$2:$AH$225,W76+2) -> 0 | Z76: 106 | AA76: 8 | AB76: 0 | AC76: 24 | AD76: 8 | AE76: 8 | AF76: 8 | AG76: 8 | AH76: 48
A77: 4 | B77: 1 | C77: 1 | D77: 1 | E77: 1 | F77: 1 | G77: 1 | H77: 1 | I77: 0 | K77: #FE | O77: 0 | P77: 0 | Q77: 0 | R77: 0 | S77: 0 | T77: 0 | U77: 0 | V77: 0 | W77: 4 | X77: 0 | Z77: 107 | AA77: 32 | AB77: 32 | AC77: 36 | AD77: 40 | AE77: 48 | AF77: 40 | AG77: 36 | AH77: 0
A78: 5 | B78: 1 | C78: 1 | D78: 1 | E78: 1 | F78: 1 | G78: 1 | H78: 1 | I78: 0 | K78: #FE | O78: 0 | P78: 0 | Q78: 0 | R78: 0 | S78: 0 | T78: 0 | U78: 0 | V78: 0 | W78: 5 | X78: 0 | Z78: 108 | AA78: 48 | AB78: 16 | AC78: 16 | AD78: 16 | AE78: 16 | AF78: 16 | AG78: 24 | AH78: 0
A79: 6 | B79: 1 | C79: 1 | D79: 1 | E79: 0 | F79: 1 | G79: 1 | H79: 1 | I79: 0 | K79: #EE | O79: 0 | P79: 0 | Q79: 0 | R79: 0 | S79: 0 | T79: 0 | U79: 0 | V79: 0 | W79: 6 | X79: 0 | Z79: 109 | AA79: 0 | AB79: 0 | AC79: 120 | AD79: 84 | AE79: 84 | AF79: 84 | AG79: 84 | AH79: 0
A80: 7 | B80: 0 | C80: 0 | D80: 0 | E80: 0 | F80: 0 | G80: 0 | H80: 0 | I80: 0 | K80: #00 | O80: 0 | P80: 0 | Q80: 0 | R80: 0 | S80: 0 | T80: 0 | U80: 0 | V80: 0 | W80: 7 | X80: 0 | Z80: 110 | AA80: 0 | AB80: 0 | AC80: 120 | AD80: 68 | AE80: 68 | AF80: 68 | AG80: 68 | AH80: 0
Z81: 111 | AA81: 0 | AB81: 0 | AC81: 56 | AD81: 68 | AE81: 68 | AF81: 68 | AG81: 56 | AH81: 0
A82: =A72+1 -> 232 | B82: 0 | C82: 1 | D82: 2 | E82: 3 | F82: 4 | G82: 5 | H82: 6 | I82: 7 | K82: =cat(K83:K90,",",",") -> #FE,#7C,#7C,#7C,#7C,#7C,#FE,#00 | O82: 0 | P82: 1 | Q82: 2 | R82: 3 | S82: 4 | T82: 5 | U82: 6 | V82: 7 | W82: 40 | Z82: 112 | AA82: 0 | AB82: 0 | AC82: 56 | AD82: 68 | AE82: 68 | AF82: 120 | AG82: 64 | AH82: 64
A83: 0 | B83: 1 | C83: 1 | D83: 1 | E83: 1 | F83: 1 | G83: 1 | H83: 1 | I83: 0 | K83: ="#"&RIGHT("0"&DEC2HEX(B83*128+C83*64+D83*32+E83*16+F83*8+G83*4+H83*2+I83),2) -> #FE | O83: =IF(_xlfn.BITAND($X83,O$1),1,0) -> 0 | P83: 0 | Q83: 0 | R83: 0 | S83: 1 | T83: 0 | U83: 0 | V83: 0 | W83: 0 | X83: 8 | Z83: 113 | AA83: 0 | AB83: 0 | AC83: 56 | AD83: 68 | AE83: 68 | AF83: 60 | AG83: 4 | AH83: 4
A84: 1 | B84: 0 | C84: 1 | D84: 1 | E84: 1 | F84: 1 | G84: 1 | H84: 0 | I84: 0 | K84: ="#"&RIGHT("0"&DEC2HEX(B84*128+C84*64+D84*32+E84*16+F84*8+G84*4+H84*2+I84),2) -> #7C | O84: 0 | P84: 0 | Q84: 0 | R84: 1 | S84: 0 | T84: 0 | U84: 0 | V84: 0 | W84: 1 | X84: 16 | Z84: 114 | AA84: 0 | AB84: 0 | AC84: 88 | AD84: 100 | AE84: 64 | AF84: 64 | AG84: 64 | AH84: 0
A85: 2 | B85: 0 | C85: 1 | D85: 1 | E85: 1 | F85: 1 | G85: 1 | H85: 0 | I85: 0 | K85: #7C | O85: 0 | P85: 0 | Q85: 1 | R85: 0 | S85: 0 | T85: 0 | U85: 0 | V85: 0 | W85: 2 | X85: 32 | Z85: 115 | AA85: 0 | AB85: 0 | AC85: 60 | AD85: 64 | AE85: 56 | AF85: 4 | AG85: 120 | AH85: 0
A86: 3 | B86: 0 | C86: 1 | D86: 1 | E86: 1 | F86: 1 | G86: 1 | H86: 0 | I86: 0 | K86: #7C | O86: 0 | P86: 0 | Q86: 1 | R86: 0 | S86: 0 | T86: 0 | U86: 0 | V86: 0 | W86: 3 | X86: =VLOOKUP(W82,$Z$2:$AH$225,W86+2) -> 32 | Z86: 116 | AA86: 32 | AB86: 32 | AC86: 124 | AD86: 32 | AE86: 32 | AF86: 32 | AG86: 24 | AH86: 0
A87: 4 | B87: 0 | C87: 1 | D87: 1 | E87: 1 | F87: 1 | G87: 1 | H87: 0 | I87: 0 | K87: #7C | O87: 0 | P87: 0 | Q87: 1 | R87: 0 | S87: 0 | T87: 0 | U87: 0 | V87: 0 | W87: 4 | X87: 32 | Z87: 117 | AA87: 0 | AB87: 0 | AC87: 72 | AD87: 72 | AE87: 72 | AF87: 72 | AG87: 52 | AH87: 0
A88: 5 | B88: 0 | C88: 1 | D88: 1 | E88: 1 | F88: 1 | G88: 1 | H88: 0 | I88: 0 | K88: #7C | O88: 0 | P88: 0 | Q88: 0 | R88: 1 | S88: 0 | T88: 0 | U88: 0 | V88: 0 | W88: 5 | X88: 16 | Z88: 118 | AA88: 0 | AB88: 0 | AC88: 68 | AD88: 68 | AE88: 40 | AF88: 40 | AG88: 16 | AH88: 0
A89: 6 | B89: 1 | C89: 1 | D89: 1 | E89: 1 | F89: 1 | G89: 1 | H89: 1 | I89: 0 | K89: #FE | O89: 0 | P89: 0 | Q89: 0 | R89: 0 | S89: 1 | T89: 0 | U89: 0 | V89: 0 | W89: 6 | X89: 8 | Z89: 119 | AA89: 0 | AB89: 0 | AC89: 68 | AD89: 84 | AE89: 84 | AF89: 40 | AG89: 40 | AH89: 0
A90: 7 | B90: 0 | C90: 0 | D90: 0 | E90: 0 | F90: 0 | G90: 0 | H90: 0 | I90: 0 | K90: #00 | O90: 0 | P90: 0 | Q90: 0 | R90: 0 | S90: 0 | T90: 0 | U90: 0 | V90: 0 | W90: 7 | X90: 0 | Z90: 120 | AA90: 0 | AB90: 0 | AC90: 68 | AD90: 40 | AE90: 16 | AF90: 40 | AG90: 68 | AH90: 0
Z91: 121 | AA91: 0 | AB91: 0 | AC91: 68 | AD91: 68 | AE91: 40 | AF91: 40 | AG91: 16 | AH91: 96
A92: =A82+1 -> 233 | B92: 0 | C92: 1 | D92: 2 | E92: 3 | F92: 4 | G92: 5 | H92: 6 | I92: 7 | K92: =cat(K93:K100,",",",") -> #FE,#3C,#3C,#3C,#3C,#FC,#78,#00 | O92: 0 | P92: 1 | Q92: 2 | R92: 3 | S92: 4 | T92: 5 | U92: 6 | V92: 7 | W92: 41 | Z92: 122 | AA92: 0 | AB92: 0 | AC92: 124 | AD92: 8 | AE92: 16 | AF92: 32 | AG92: 124 | AH92: 0
A93: 0 | B93: 1 | C93: 1 | D93: 1 | E93: 1 | F93: 1 | G93: 1 | H93: 1 | I93: 0 | K93: ="#"&RIGHT("0"&DEC2HEX(B93*128+C93*64+D93*32+E93*16+F93*8+G93*4+H93*2+I93),2) -> #FE | O93: =IF(_xlfn.BITAND($X93,O$1),1,0) -> 0 | P93: 0 | Q93: 1 | R93: 0 | S93: 0 | T93: 0 | U93: 0 | V93: 0 | W93: 0 | X93: =VLOOKUP(W92,$Z$2:$AH$225,W93+2) -> 32 | Z93: 123 | AA93: 12 | AB93: 16 | AC93: 16 | AD93: 32 | AE93: 16 | AF93: 16 | AG93: 12 | AH93: 0
A94: 1 | B94: 0 | C94: 0 | D94: 1 | E94: 1 | F94: 1 | G94: 1 | H94: 0 | I94: 0 | K94: ="#"&RIGHT("0"&DEC2HEX(B94*128+C94*64+D94*32+E94*16+F94*8+G94*4+H94*2+I94),2) -> #3C | O94: 0 | P94: 0 | Q94: 0 | R94: 1 | S94: 0 | T94: 0 | U94: 0 | V94: 0 | W94: 1 | X94: =VLOOKUP(W92,$Z$2:$AH$225,W94+2) -> 16 | Z94: 124 | AA94: 16 | AB94: 16 | AC94: 16 | AD94: 16 | AE94: 16 | AF94: 16 | AG94: 16 | AH94: 0
A95: 2 | B95: 0 | C95: 0 | D95: 1 | E95: 1 | F95: 1 | G95: 1 | H95: 0 | I95: 0 | K95: #3C | O95: 0 | P95: 0 | Q95: 0 | R95: 0 | S95: 1 | T95: 0 | U95: 0 | V95: 0 | W95: 2 | X95: =VLOOKUP(W92,$Z$2:$AH$225,W95+2) -> 8 | Z95: 125 | AA95: 96 | AB95: 16 | AC95: 16 | AD95: 8 | AE95: 16 | AF95: 16 | AG95: 96 | AH95: 0
A96: 3 | B96: 0 | C96: 0 | D96: 1 | E96: 1 | F96: 1 | G96: 1 | H96: 0 | I96: 0 | K96: #3C | O96: 0 | P96: 0 | Q96: 0 | R96: 0 | S96: 1 | T96: 0 | U96: 0 | V96: 0 | W96: 3 | X96: =VLOOKUP(W92,$Z$2:$AH$225,W96+2) -> 8 | Z96: 126 | AA96: 0 | AB96: 0 | AC96: 32 | AD96: 84 | AE96: 8 | AF96: 0 | AG96: 0 | AH96: 0
A97: 4 | B97: 0 | C97: 0 | D97: 1 | E97: 1 | F97: 1 | G97: 1 | H97: 0 | I97: 0 | K97: #3C | O97: 0 | P97: 0 | Q97: 0 | R97: 0 | S97: 1 | T97: 0 | U97: 0 | V97: 0 | W97: 4 | X97: =VLOOKUP(W92,$Z$2:$AH$225,W97+2) -> 8 | Z97: 127 | AA97: 160 | AB97: 64 | AC97: 168 | AD97: 4 | AE97: 254 | AF97: 4 | AG97: 8 | AH97: 0
A98: 5 | B98: 1 | C98: 1 | D98: 1 | E98: 1 | F98: 1 | G98: 1 | H98: 0 | I98: 0 | K98: #FC | O98: 0 | P98: 0 | Q98: 0 | R98: 1 | S98: 0 | T98: 0 | U98: 0 | V98: 0 | W98: 5 | X98: =VLOOKUP(W92,$Z$2:$AH$225,W98+2) -> 16 | Z98: 128 | AA98: 0 | AB98: 0 | AC98: 0 | AD98: 0 | AE98: 0 | AF98: 0 | AG98: 0 | AH98: 0
A99: 6 | B99: 0 | C99: 1 | D99: 1 | E99: 1 | F99: 1 | G99: 0 | H99: 0 | I99: 0 | K99: #78 | O99: 0 | P99: 0 | Q99: 1 | R99: 0 | S99: 0 | T99: 0 | U99: 0 | V99: 0 | W99: 6 | X99: =VLOOKUP(W92,$Z$2:$AH$225,W99+2) -> 32 | Z99: 129 | AA99: 240 | AB99: 240 | AC99: 240 | AD99: 240 | AE99: 0 | AF99: 0 | AG99: 0 | AH99: 0
A100: 7 | B100: 0 | C100: 0 | D100: 0 | E100: 0 | F100: 0 | G100: 0 | H100: 0 | I100: 0 | K100: #00 | O100: 0 | P100: 0 | Q100: 0 | R100: 0 | S100: 0 | T100: 0 | U100: 0 | V100: 0 | W100: 7 | X100: =VLOOKUP(W92,$Z$2:$AH$225,W100+2) -> 0 | Z100: 130 | AA100: 15 | AB100: 15 | AC100: 15 | AD100: 15 | AE100: 0 | AF100: 0 | AG100: 0 | AH100: 0
Z101: 131 | AA101: 255 | AB101: 255 | AC101: 255 | AD101: 255 | AE101: 0 | AF101: 0 | AG101: 0 | AH101: 0
A102: =A92+1 -> 234 | B102: 0 | C102: 1 | D102: 2 | E102: 3 | F102: 4 | G102: 5 | H102: 6 | I102: 7 | K102: =cat(K103:K110,",",",") -> #DE,#FE,#FC,#F8,#FC,#FE,#DE,#00 | O102: 0 | P102: 1 | Q102: 2 | R102: 3 | S102: 4 | T102: 5 | U102: 6 | V102: 7 | W102: 42 | Z102: 132 | AA102: 0 | AB102: 0 | AC102: 0 | AD102: 0 | AE102: 240 | AF102: 240 | AG102: 240 | AH102: 240
A103: 0 | B103: 1 | C103: 1 | D103: 0 | E103: 1 | F103: 1 | G103: 1 | H103: 1 | I103: 0 | K103: ="#"&RIGHT("0"&DEC2HEX(B103*128+C103*64+D103*32+E103*16+F103*8+G103*4+H103*2+I103),2) -> #DE | O103: =IF(_xlfn.BITAND($X103,O$1),1,0) -> 0 | P103: 0 | Q103: 0 | R103: 1 | S103: 0 | T103: 0 | U103: 0 | V103: 0 | W103: 0 | X103: 16 | Z103: 133 | AA103: 240 | AB103: 240 | AC103: 240 | AD103: 240 | AE103: 240 | AF103: 240 | AG103: 240 | AH103: 240
A104: 1 | B104: 1 | C104: 1 | D104: 1 | E104: 1 | F104: 1 | G104: 1 | H104: 1 | I104: 0 | K104: ="#"&RIGHT("0"&DEC2HEX(B104*128+C104*64+D104*32+E104*16+F104*8+G104*4+H104*2+I104),2) -> #FE | O104: 0 | P104: 1 | Q104: 0 | R104: 1 | S104: 0 | T104: 1 | U104: 0 | V104: 0 | W104: 1 | X104: 84 | Z104: 134 | AA104: 15 | AB104: 15 | AC104: 15 | AD104: 15 | AE104: 240 | AF104: 240 | AG104: 240 | AH104: 240
A105: 2 | B105: 1 | C105: 1 | D105: 1 | E105: 1 | F105: 1 | G105: 1 | H105: 0 | I105: 0 | K105: #FC | O105: 0 | P105: 0 | Q105: 1 | R105: 1 | S105: 1 | T105: 0 | U105: 0 | V105: 0 | W105: 2 | X105: 56 | Z105: 135 | AA105: 255 | AB105: 255 | AC105: 255 | AD105: 255 | AE105: 240 | AF105: 240 | AG105: 240 | AH105: 240
A106: 3 | B106: 1 | C106: 1 | D106: 1 | E106: 1 | F106: 1 | G106: 0 | H106: 0 | I106: 0 | K106: #F8 | O106: 0 | P106: 0 | Q106: 0 | R106: 1 | S106: 0 | T106: 0 | U106: 0 | V106: 0 | W106: 3 | X106: =VLOOKUP(W102,$Z$2:$AH$225,W106+2) -> 16 | Z106: 136 | AA106: 0 | AB106: 0 | AC106: 0 | AD106: 0 | AE106: 15 | AF106: 15 | AG106: 15 | AH106: 15
A107: 4 | B107: 1 | C107: 1 | D107: 1 | E107: 1 | F107: 1 | G107: 1 | H107: 0 | I107: 0 | K107: #FC | O107: 0 | P107: 0 | Q107: 1 | R107: 1 | S107: 1 | T107: 0 | U107: 0 | V107: 0 | W107: 4 | X107: 56 | Z107: 137 | AA107: 240 | AB107: 240 | AC107: 240 | AD107: 240 | AE107: 15 | AF107: 15 | AG107: 15 | AH107: 15
A108: 5 | B108: 1 | C108: 1 | D108: 1 | E108: 1 | F108: 1 | G108: 1 | H108: 1 | I108: 0 | K108: #FE | O108: 0 | P108: 1 | Q108: 0 | R108: 1 | S108: 0 | T108: 1 | U108: 0 | V108: 0 | W108: 5 | X108: 84 | Z108: 138 | AA108: 15 | AB108: 15 | AC108: 15 | AD108: 15 | AE108: 15 | AF108: 15 | AG108: 15 | AH108: 15
A109: 6 | B109: 1 | C109: 1 | D109: 0 | E109: 1 | F109: 1 | G109: 1 | H109: 1 | I109: 0 | K109: #DE | O109: 0 | P109: 0 | Q109: 0 | R109: 1 | S109: 0 | T109: 0 | U109: 0 | V109: 0 | W109: 6 | X109: 16 | Z109: 139 | AA109: 255 | AB109: 255 | AC109: 255 | AD109: 255 | AE109: 15 | AF109: 15 | AG109: 15 | AH109: 15
A110: 7 | B110: 0 | C110: 0 | D110: 0 | E110: 0 | F110: 0 | G110: 0 | H110: 0 | I110: 0 | K110: #00 | O110: 0 | P110: 0 | Q110: 0 | R110: 0 | S110: 0 | T110: 0 | U110: 0 | V110: 0 | W110: 7 | X110: 0 | Z110: 140 | AA110: 0 | AB110: 0 | AC110: 0 | AD110: 0 | AE110: 255 | AF110: 255 | AG110: 255 | AH110: 255
Z111: 141 | AA111: 240 | AB111: 240 | AC111: 240 | AD111: 240 | AE111: 255 | AF111: 255 | AG111: 255 | AH111: 255
A112: =A102+1 -> 235 | B112: 0 | C112: 1 | D112: 2 | E112: 3 | F112: 4 | G112: 5 | H112: 6 | I112: 7 | K112: =cat(K113:K120,",",",") -> #F0,#F0,#FC,#FC,#FC,#FC,#FC,#00 | O112: 0 | P112: 1 | Q112: 2 | R112: 3 | S112: 4 | T112: 5 | U112: 6 | V112: 7 | W112: 43 | Z112: 142 | AA112: 15 | AB112: 15 | AC112: 15 | AD112: 15 | AE112: 255 | AF112: 255 | AG112: 255 | AH112: 255
A113: 0 | B113: 1 | C113: 1 | D113: 1 | E113: 1 | F113: 0 | G113: 0 | H113: 0 | I113: 0 | K113: ="#"&RIGHT("0"&DEC2HEX(B113*128+C113*64+D113*32+E113*16+F113*8+G113*4+H113*2+I113),2) -> #F0 | O113: =IF(_xlfn.BITAND($X113,O$1),1,0) -> 0 | P113: 0 | Q113: 0 | R113: 0 | S113: 0 | T113: 0 | U113: 0 | V113: 0 | W113: 0 | X113: 0 | Z113: 143 | AA113: 255 | AB113: 255 | AC113: 255 | AD113: 255 | AE113: 255 | AF113: 255 | AG113: 255 | AH113: 255
A114: 1 | B114: 1 | C114: 1 | D114: 1 | E114: 1 | F114: 0 | G114: 0 | H114: 0 | I114: 0 | K114: ="#"&RIGHT("0"&DEC2HEX(B114*128+C114*64+D114*32+E114*16+F114*8+G114*4+H114*2+I114),2) -> #F0 | O114: 0 | P114: 0 | Q114: 0 | R114: 1 | S114: 0 | T114: 0 | U114: 0 | V114: 0 | W114: 1 | X114: 16 | Z114: 144 | AA114: 0 | AB114: 0 | AC114: 0 | AD114: 24 | AE114: 24 | AF114: 0 | AG114: 0 | AH114: 0
A115: 2 | B115: 1 | C115: 1 | D115: 1 | E115: 1 | F115: 1 | G115: 1 | H115: 0 | I115: 0 | K115: #FC | O115: 0 | P115: 0 | Q115: 0 | R115: 1 | S115: 0 | T115: 0 | U115: 0 | V115: 0 | W115: 2 | X115: 16 | Z115: 145 | AA115: 0 | AB115: 0 | AC115: 0 | AD115: 255 | AE115: 255 | AF115: 0 | AG115: 0 | AH115: 0
A116: 3 | B116: 1 | C116: 1 | D116: 1 | E116: 1 | F116: 1 | G116: 1 | H116: 0 | I116: 0 | K116: #FC | O116: 0 | P116: 1 | Q116: 1 | R116: 1 | S116: 1 | T116: 1 | U116: 0 | V116: 0 | W116: 3 | X116: =VLOOKUP(W112,$Z$2:$AH$225,W116+2) -> 124 | Z116: 146 | AA116: 24 | AB116: 24 | AC116: 24 | AD116: 24 | AE116: 24 | AF116: 24 | AG116: 24 | AH116: 24
A117: 4 | B117: 1 | C117: 1 | D117: 1 | E117: 1 | F117: 1 | G117: 1 | H117: 0 | I117: 0 | K117: #FC | O117: 0 | P117: 0 | Q117: 0 | R117: 1 | S117: 0 | T117: 0 | U117: 0 | V117: 0 | W117: 4 | X117: 16 | Z117: 147 | AA117: 24 | AB117: 24 | AC117: 24 | AD117: 255 | AE117: 255 | AF117: 24 | AG117: 24 | AH117: 24
A118: 5 | B118: 1 | C118: 1 | D118: 1 | E118: 1 | F118: 1 | G118: 1 | H118: 0 | I118: 0 | K118: #FC | O118: 0 | P118: 0 | Q118: 0 | R118: 1 | S118: 0 | T118: 0 | U118: 0 | V118: 0 | W118: 5 | X118: 16 | Z118: 148 | AA118: 24 | AB118: 24 | AC118: 24 | AD118: 248 | AE118: 248 | AF118: 24 | AG118: 24 | AH118: 24
A119: 6 | B119: 1 | C119: 1 | D119: 1 | E119: 1 | F119: 1 | G119: 1 | H119: 0 | I119: 0 | K119: #FC | O119: 0 | P119: 0 | Q119: 0 | R119: 0 | S119: 0 | T119: 0 | U119: 0 | V119: 0 | W119: 6 | X119: 0 | Z119: 149 | AA119: 24 | AB119: 24 | AC119: 24 | AD119: 31 | AE119: 31 | AF119: 24 | AG119: 24 | AH119: 24
A120: 7 | B120: 0 | C120: 0 | D120: 0 | E120: 0 | F120: 0 | G120: 0 | H120: 0 | I120: 0 | K120: #00 | O120: 0 | P120: 0 | Q120: 0 | R120: 0 | S120: 0 | T120: 0 | U120: 0 | V120: 0 | W120: 7 | X120: 0 | Z120: 150 | AA120: 24 | AB120: 24 | AC120: 24 | AD120: 255 | AE120: 255 | AF120: 0 | AG120: 0 | AH120: 0
Z121: 151 | AA121: 0 | AB121: 0 | AC121: 0 | AD121: 255 | AE121: 255 | AF121: 24 | AG121: 24 | AH121: 24
A122: =A112+1 -> 236 | B122: 0 | C122: 1 | D122: 2 | E122: 3 | F122: 4 | G122: 5 | H122: 6 | I122: 7 | K122: =cat(K123:K130,",",",") -> #EE,#FE,#FE,#FE,#FE,#FE,#D6,#00 | O122: 0 | P122: 1 | Q122: 2 | R122: 3 | S122: 4 | T122: 5 | U122: 6 | V122: 7 | W122: 44 | Z122: 152 | AA122: 0 | AB122: 0 | AC122: 0 | AD122: 15 | AE122: 31 | AF122: 24 | AG122: 24 | AH122: 24
A123: 0 | B123: 1 | C123: 1 | D123: 1 | E123: 0 | F123: 1 | G123: 1 | H123: 1 | I123: 0 | K123: ="#"&RIGHT("0"&DEC2HEX(B123*128+C123*64+D123*32+E123*16+F123*8+G123*4+H123*2+I123),2) -> #EE | O123: =IF(_xlfn.BITAND($X123,O$1),1,0) -> 0 | P123: 0 | Q123: 0 | R123: 0 | S123: 0 | T123: 0 | U123: 0 | V123: 0 | W123: 0 | X123: 0 | Z123: 153 | AA123: 0 | AB123: 0 | AC123: 0 | AD123: 240 | AE123: 248 | AF123: 24 | AG123: 24 | AH123: 24
A124: 1 | B124: 1 | C124: 1 | D124: 1 | E124: 1 | F124: 1 | G124: 1 | H124: 1 | I124: 0 | K124: ="#"&RIGHT("0"&DEC2HEX(B124*128+C124*64+D124*32+E124*16+F124*8+G124*4+H124*2+I124),2) -> #FE | O124: 0 | P124: 0 | Q124: 0 | R124: 0 | S124: 0 | T124: 0 | U124: 0 | V124: 0 | W124: 1 | X124: 0 | Z124: 154 | AA124: 24 | AB124: 24 | AC124: 24 | AD124: 31 | AE124: 15 | AF124: 0 | AG124: 0 | AH124: 0
A125: 2 | B125: 1 | C125: 1 | D125: 1 | E125: 1 | F125: 1 | G125: 1 | H125: 1 | I125: 0 | K125: #FE | O125: 0 | P125: 0 | Q125: 0 | R125: 0 | S125: 0 | T125: 0 | U125: 0 | V125: 0 | W125: 2 | X125: 0 | Z125: 155 | AA125: 24 | AB125: 24 | AC125: 24 | AD125: 248 | AE125: 240 | AF125: 0 | AG125: 0 | AH125: 0
A126: 3 | B126: 1 | C126: 1 | D126: 1 | E126: 1 | F126: 1 | G126: 1 | H126: 1 | I126: 0 | K126: #FE | O126: 0 | P126: 0 | Q126: 0 | R126: 0 | S126: 0 | T126: 0 | U126: 0 | V126: 0 | W126: 3 | X126: =VLOOKUP(W122,$Z$2:$AH$225,W126+2) -> 0 | Z126: 156 | AA126: 255 | AB126: 254 | AC126: 252 | AD126: 248 | AE126: 240 | AF126: 224 | AG126: 192 | AH126: 128
A127: 4 | B127: 1 | C127: 1 | D127: 1 | E127: 1 | F127: 1 | G127: 1 | H127: 1 | I127: 0 | K127: #FE | O127: 0 | P127: 0 | Q127: 0 | R127: 1 | S127: 0 | T127: 0 | U127: 0 | V127: 0 | W127: 4 | X127: 16 | Z127: 157 | AA127: 255 | AB127: 127 | AC127: 63 | AD127: 31 | AE127: 15 | AF127: 7 | AG127: 3 | AH127: 1
A128: 5 | B128: 1 | C128: 1 | D128: 1 | E128: 1 | F128: 1 | G128: 1 | H128: 1 | I128: 0 | K128: #FE | O128: 0 | P128: 0 | Q128: 0 | R128: 1 | S128: 0 | T128: 0 | U128: 0 | V128: 0 | W128: 5 | X128: 16 | Z128: 158 | AA128: 128 | AB128: 192 | AC128: 224 | AD128: 240 | AE128: 248 | AF128: 252 | AG128: 254 | AH128: 255
A129: 6 | B129: 1 | C129: 1 | D129: 0 | E129: 1 | F129: 0 | G129: 1 | H129: 1 | I129: 0 | K129: #D6 | O129: 0 | P129: 0 | Q129: 1 | R129: 0 | S129: 0 | T129: 0 | U129: 0 | V129: 0 | W129: 6 | X129: 32 | Z129: 159 | AA129: 1 | AB129: 3 | AC129: 7 | AD129: 15 | AE129: 31 | AF129: 63 | AG129: 127 | AH129: 255
A130: 7 | B130: 0 | C130: 0 | D130: 0 | E130: 0 | F130: 0 | G130: 0 | H130: 0 | I130: 0 | K130: #00 | O130: 0 | P130: 0 | Q130: 0 | R130: 0 | S130: 0 | T130: 0 | U130: 0 | V130: 0 | W130: 7 | X130: 0 | Z130: 160 | AA130: 68 | AB130: 40 | AC130: 124 | AD130: 16 | AE130: 124 | AF130: 16 | AG130: 16 | AH130: 0
Z131: 161 | AA131: 0 | AB131: 0 | AC131: 0 | AD131: 0 | AE131: 112 | AF131: 80 | AG131: 112 | AH131: 0
A132: =A122+1 -> 237 | B132: 0 | C132: 1 | D132: 2 | E132: 3 | F132: 4 | G132: 5 | H132: 6 | I132: 7 | K132: =cat(K133:K140,",",",") -> #CE,#EE,#FE,#FE,#FE,#EE,#E6,#00 | O132: 0 | P132: 1 | Q132: 2 | R132: 3 | S132: 4 | T132: 5 | U132: 6 | V132: 7 | W132: 45 | Z132: 162 | AA132: 14 | AB132: 8 | AC132: 8 | AD132: 0 | AE132: 0 | AF132: 0 | AG132: 0 | AH132: 0
A133: 0 | B133: 1 | C133: 1 | D133: 0 | E133: 0 | F133: 1 | G133: 1 | H133: 1 | I133: 0 | K133: ="#"&RIGHT("0"&DEC2HEX(B133*128+C133*64+D133*32+E133*16+F133*8+G133*4+H133*2+I133),2) -> #CE | O133: =IF(_xlfn.BITAND($X133,O$1),1,0) -> 0 | P133: 0 | Q133: 0 | R133: 0 | S133: 0 | T133: 0 | U133: 0 | V133: 0 | W133: 0 | X133: 0 | Z133: 163 | AA133: 0 | AB133: 0 | AC133: 0 | AD133: 0 | AE133: 16 | AF133: 16 | AG133: 112 | AH133: 0
A134: 1 | B134: 1 | C134: 1 | D134: 1 | E134: 0 | F134: 1 | G134: 1 | H134: 1 | I134: 0 | K134: ="#"&RIGHT("0"&DEC2HEX(B134*128+C134*64+D134*32+E134*16+F134*8+G134*4+H134*2+I134),2) -> #EE | O134: 0 | P134: 0 | Q134: 0 | R134: 0 | S134: 0 | T134: 0 | U134: 0 | V134: 0 | W134: 1 | X134: 0 | Z134: 164 | AA134: 0 | AB134: 0 | AC134: 0 | AD134: 0 | AE134: 64 | AF134: 32 | AG134: 16 | AH134: 0
A135: 2 | B135: 1 | C135: 1 | D135: 1 | E135: 1 | F135: 1 | G135: 1 | H135: 1 | I135: 0 | K135: #FE | O135: 0 | P135: 0 | Q135: 0 | R135: 0 | S135: 0 | T135: 0 | U135: 0 | V135: 0 | W135: 2 | X135: 0 | Z135: 165 | AA135: 0 | AB135: 0 | AC135: 0 | AD135: 24 | AE135: 24 | AF135: 0 | AG135: 0 | AH135: 0
A136: 3 | B136: 1 | C136: 1 | D136: 1 | E136: 1 | F136: 1 | G136: 1 | H136: 1 | I136: 0 | K136: #FE | O136: 0 | P136: 1 | Q136: 1 | R136: 1 | S136: 1 | T136: 1 | U136: 0 | V136: 0 | W136: 3 | X136: =VLOOKUP(W132,$Z$2:$AH$225,W136+2) -> 124 | Z136: 166 | AA136: 0 | AB136: 126 | AC136: 2 | AD136: 126 | AE136: 2 | AF136: 4 | AG136: 24 | AH136: 0
A137: 4 | B137: 1 | C137: 1 | D137: 1 | E137: 1 | F137: 1 | G137: 1 | H137: 1 | I137: 0 | K137: #FE | O137: 0 | P137: 0 | Q137: 0 | R137: 0 | S137: 0 | T137: 0 | U137: 0 | V137: 0 | W137: 4 | X137: 0 | Z137: 167 | AA137: 0 | AB137: 0 | AC137: 0 | AD137: 124 | AE137: 20 | AF137: 16 | AG137: 32 | AH137: 0
A138: 5 | B138: 1 | C138: 1 | D138: 1 | E138: 0 | F138: 1 | G138: 1 | H138: 1 | I138: 0 | K138: #EE | O138: 0 | P138: 0 | Q138: 0 | R138: 0 | S138: 0 | T138: 0 | U138: 0 | V138: 0 | W138: 5 | X138: 0 | Z138: 168 | AA138: 0 | AB138: 0 | AC138: 0 | AD138: 12 | AE138: 112 | AF138: 16 | AG138: 16 | AH138: 0
A139: 6 | B139: 1 | C139: 1 | D139: 1 | E139: 0 | F139: 0 | G139: 1 | H139: 1 | I139: 0 | K139: #E6 | O139: 0 | P139: 0 | Q139: 0 | R139: 0 | S139: 0 | T139: 0 | U139: 0 | V139: 0 | W139: 6 | X139: 0 | Z139: 169 | AA139: 0 | AB139: 0 | AC139: 16 | AD139: 124 | AE139: 68 | AF139: 4 | AG139: 24 | AH139: 0
A140: 7 | B140: 0 | C140: 0 | D140: 0 | E140: 0 | F140: 0 | G140: 0 | H140: 0 | I140: 0 | K140: #00 | O140: 0 | P140: 0 | Q140: 0 | R140: 0 | S140: 0 | T140: 0 | U140: 0 | V140: 0 | W140: 7 | X140: 0 | Z140: 170 | AA140: 0 | AB140: 0 | AC140: 0 | AD140: 124 | AE140: 16 | AF140: 16 | AG140: 124 | AH140: 0
Z141: 171 | AA141: 0 | AB141: 0 | AC141: 8 | AD141: 124 | AE141: 24 | AF141: 40 | AG141: 72 | AH141: 0
A142: =A132+1 -> 238 | B142: 0 | C142: 1 | D142: 2 | E142: 3 | F142: 4 | G142: 5 | H142: 6 | I142: 7 | K142: =cat(K143:K150,",",",") -> #7C,#FE,#FE,#EE,#FE,#FE,#7C,#00 | O142: 0 | P142: 1 | Q142: 2 | R142: 3 | S142: 4 | T142: 5 | U142: 6 | V142: 7 | W142: 46 | Z142: 172 | AA142: 0 | AB142: 0 | AC142: 32 | AD142: 124 | AE142: 36 | AF142: 32 | AG142: 32 | AH142: 0
A143: 0 | B143: 0 | C143: 1 | D143: 1 | E143: 1 | F143: 1 | G143: 1 | H143: 0 | I143: 0 | K143: ="#"&RIGHT("0"&DEC2HEX(B143*128+C143*64+D143*32+E143*16+F143*8+G143*4+H143*2+I143),2) -> #7C | O143: =IF(_xlfn.BITAND($X143,O$1),1,0) -> 0 | P143: 0 | Q143: 0 | R143: 0 | S143: 0 | T143: 0 | U143: 0 | V143: 0 | W143: 0 | X143: 0 | Z143: 173 | AA143: 0 | AB143: 0 | AC143: 0 | AD143: 56 | AE143: 8 | AF143: 8 | AG143: 124 | AH143: 0
A144: 1 | B144: 1 | C144: 1 | D144: 1 | E144: 1 | F144: 1 | G144: 1 | H144: 1 | I144: 0 | K144: ="#"&RIGHT("0"&DEC2HEX(B144*128+C144*64+D144*32+E144*16+F144*8+G144*4+H144*2+I144),2) -> #FE | O144: 0 | P144: 0 | Q144: 0 | R144: 0 | S144: 0 | T144: 0 | U144: 0 | V144: 0 | W144: 1 | X144: 0 | Z144: 174 | AA144: 0 | AB144: 0 | AC144: 60 | AD144: 4 | AE144: 60 | AF144: 4 | AG144: 60 | AH144: 0
A145: 2 | B145: 1 | C145: 1 | D145: 1 | E145: 1 | F145: 1 | G145: 1 | H145: 1 | I145: 0 | K145: #FE | O145: 0 | P145: 0 | Q145: 0 | R145: 0 | S145: 0 | T145: 0 | U145: 0 | V145: 0 | W145: 2 | X145: 0 | Z145: 175 | AA145: 0 | AB145: 0 | AC145: 0 | AD145: 84 | AE145: 84 | AF145: 4 | AG145: 8 | AH145: 0
A146: 3 | B146: 1 | C146: 1 | D146: 1 | E146: 0 | F146: 1 | G146: 1 | H146: 1 | I146: 0 | K146: #EE | O146: 0 | P146: 0 | Q146: 0 | R146: 0 | S146: 0 | T146: 0 | U146: 0 | V146: 0 | W146: 3 | X146: =VLOOKUP(W142,$Z$2:$AH$225,W146+2) -> 0 | Z146: 176 | AA146: 0 | AB146: 0 | AC146: 0 | AD146: 0 | AE146: 126 | AF146: 0 | AG146: 0 | AH146: 0
A147: 4 | B147: 1 | C147: 1 | D147: 1 | E147: 1 | F147: 1 | G147: 1 | H147: 1 | I147: 0 | K147: #FE | O147: 0 | P147: 0 | Q147: 0 | R147: 0 | S147: 0 | T147: 0 | U147: 0 | V147: 0 | W147: 4 | X147: 0 | Z147: 177 | AA147: 0 | AB147: 254 | AC147: 2 | AD147: 20 | AE147: 16 | AF147: 16 | AG147: 96 | AH147: 0
A148: 5 | B148: 1 | C148: 1 | D148: 1 | E148: 1 | F148: 1 | G148: 1 | H148: 1 | I148: 0 | K148: #FE | O148: 0 | P148: 0 | Q148: 1 | R148: 1 | S148: 0 | T148: 0 | U148: 0 | V148: 0 | W148: 5 | X148: 48 | Z148: 178 | AA148: 0 | AB148: 6 | AC148: 24 | AD148: 104 | AE148: 8 | AF148: 8 | AG148: 8 | AH148: 0
A149: 6 | B149: 0 | C149: 1 | D149: 1 | E149: 1 | F149: 1 | G149: 1 | H149: 0 | I149: 0 | K149: #7C | O149: 0 | P149: 0 | Q149: 1 | R149: 1 | S149: 0 | T149: 0 | U149: 0 | V149: 0 | W149: 6 | X149: 48 | Z149: 179 | AA149: 16 | AB149: 126 | AC149: 66 | AD149: 66 | AE149: 2 | AF149: 4 | AG149: 24 | AH149: 0
A150: 7 | B150: 0 | C150: 0 | D150: 0 | E150: 0 | F150: 0 | G150: 0 | H150: 0 | I150: 0 | K150: #00 | O150: 0 | P150: 0 | Q150: 0 | R150: 0 | S150: 0 | T150: 0 | U150: 0 | V150: 0 | W150: 7 | X150: 0 | Z150: 180 | AA150: 0 | AB150: 124 | AC150: 16 | AD150: 16 | AE150: 16 | AF150: 16 | AG150: 254 | AH150: 0
Z151: 181 | AA151: 4 | AB151: 4 | AC151: 126 | AD151: 12 | AE151: 20 | AF151: 36 | AG151: 68 | AH151: 0
A152: =A142+1 -> 239 | B152: 0 | C152: 1 | D152: 2 | E152: 3 | F152: 4 | G152: 5 | H152: 6 | I152: 7 | K152: =cat(K153:K160,",",",") -> #FC,#FE,#F6,#FE,#FC,#F8,#F8,#00 | O152: 0 | P152: 1 | Q152: 2 | R152: 3 | S152: 4 | T152: 5 | U152: 6 | V152: 7 | W152: 47 | Z152: 182 | AA152: 16 | AB152: 16 | AC152: 126 | AD152: 18 | AE152: 18 | AF152: 34 | AG152: 70 | AH152: 0
A153: 0 | B153: 1 | C153: 1 | D153: 1 | E153: 1 | F153: 1 | G153: 1 | H153: 0 | I153: 0 | K153: ="#"&RIGHT("0"&DEC2HEX(B153*128+C153*64+D153*32+E153*16+F153*8+G153*4+H153*2+I153),2) -> #FC | O153: =IF(_xlfn.BITAND($X153,O$1),1,0) -> 0 | P153: 0 | Q153: 0 | R153: 0 | S153: 0 | T153: 0 | U153: 0 | V153: 0 | W153: 0 | X153: =VLOOKUP(W152,$Z$2:$AH$225,W153+2) -> 0 | Z153: 183 | AA153: 16 | AB153: 16 | AC153: 126 | AD153: 16 | AE153: 126 | AF153: 16 | AG153: 16 | AH153: 0
A154: 1 | B154: 1 | C154: 1 | D154: 1 | E154: 1 | F154: 1 | G154: 1 | H154: 1 | I154: 0 | K154: ="#"&RIGHT("0"&DEC2HEX(B154*128+C154*64+D154*32+E154*16+F154*8+G154*4+H154*2+I154),2) -> #FE | O154: 0 | P154: 0 | Q154: 0 | R154: 0 | S154: 0 | T154: 0 | U154: 0 | V154: 0 | W154: 1 | X154: =VLOOKUP(W152,$Z$2:$AH$225,W154+2) -> 0 | Z154: 184 | AA154: 0 | AB154: 62 | AC154: 34 | AD154: 66 | AE154: 2 | AF154: 4 | AG154: 56 | AH154: 0
A155: 2 | B155: 1 | C155: 1 | D155: 1 | E155: 1 | F155: 0 | G155: 1 | H155: 1 | I155: 0 | K155: #F6 | O155: 0 | P155: 0 | Q155: 0 | R155: 0 | S155: 0 | T155: 1 | U155: 0 | V155: 0 | W155: 2 | X155: =VLOOKUP(W152,$Z$2:$AH$225,W155+2) -> 4 | Z155: 185 | AA155: 32 | AB155: 32 | AC155: 62 | AD155: 68 | AE155: 4 | AF155: 4 | AG155: 56 | AH155: 0
A156: 3 | B156: 1 | C156: 1 | D156: 1 | E156: 1 | F156: 1 | G156: 1 | H156: 1 | I156: 0 | K156: #FE | O156: 0 | P156: 0 | Q156: 0 | R156: 0 | S156: 1 | T156: 0 | U156: 0 | V156: 0 | W156: 3 | X156: =VLOOKUP(W152,$Z$2:$AH$225,W156+2) -> 8 | Z156: 186 | AA156: 0 | AB156: 0 | AC156: 126 | AD156: 2 | AE156: 2 | AF156: 2 | AG156: 126 | AH156: 0
A157: 4 | B157: 1 | C157: 1 | D157: 1 | E157: 1 | F157: 1 | G157: 1 | H157: 0 | I157: 0 | K157: #FC | O157: 0 | P157: 0 | Q157: 0 | R157: 1 | S157: 0 | T157: 0 | U157: 0 | V157: 0 | W157: 4 | X157: =VLOOKUP(W152,$Z$2:$AH$225,W157+2) -> 16 | Z157: 187 | AA157: 0 | AB157: 68 | AC157: 254 | AD157: 68 | AE157: 68 | AF157: 4 | AG157: 56 | AH157: 0
A158: 5 | B158: 1 | C158: 1 | D158: 1 | E158: 1 | F158: 1 | G158: 0 | H158: 0 | I158: 0 | K158: #F8 | O158: 0 | P158: 0 | Q158: 1 | R158: 0 | S158: 0 | T158: 0 | U158: 0 | V158: 0 | W158: 5 | X158: =VLOOKUP(W152,$Z$2:$AH$225,W158+2) -> 32 | Z158: 188 | AA158: 0 | AB158: 112 | AC158: 2 | AD158: 114 | AE158: 2 | AF158: 4 | AG158: 120 | AH158: 0
A159: 6 | B159: 1 | C159: 1 | D159: 1 | E159: 1 | F159: 1 | G159: 0 | H159: 0 | I159: 0 | K159: #F8 | O159: 0 | P159: 1 | Q159: 0 | R159: 0 | S159: 0 | T159: 0 | U159: 0 | V159: 0 | W159: 6 | X159: =VLOOKUP(W152,$Z$2:$AH$225,W159+2) -> 64 | Z159: 189 | AA159: 0 | AB159: 126 | AC159: 2 | AD159: 4 | AE159: 8 | AF159: 20 | AG159: 98 | AH159: 0
A160: 7 | B160: 0 | C160: 0 | D160: 0 | E160: 0 | F160: 0 | G160: 0 | H160: 0 | I160: 0 | K160: #00 | O160: 0 | P160: 0 | Q160: 0 | R160: 0 | S160: 0 | T160: 0 | U160: 0 | V160: 0 | W160: 7 | X160: =VLOOKUP(W152,$Z$2:$AH$225,W160+2) -> 0 | Z160: 190 | AA160: 0 | AB160: 64 | AC160: 254 | AD160: 68 | AE160: 72 | AF160: 64 | AG160: 62 | AH160: 0
Z161: 191 | AA161: 0 | AB161: 66 | AC161: 66 | AD161: 36 | AE161: 4 | AF161: 8 | AG161: 16 | AH161: 0
A162: =A152+1 -> 240 | B162: 0 | C162: 1 | D162: 2 | E162: 3 | F162: 4 | G162: 5 | H162: 6 | I162: 7 | K162: =cat(K163:K170,",",",") -> #7C,#FE,#FE,#FE,#F2,#F4,#7A,#00 | O162: 0 | P162: 1 | Q162: 2 | R162: 3 | S162: 4 | T162: 5 | U162: 6 | V162: 7 | W162: 48 | Z162: 192 | AA162: 0 | AB162: 62 | AC162: 34 | AD162: 82 | AE162: 10 | AF162: 4 | AG162: 56 | AH162: 0
A163: 0 | B163: 0 | C163: 1 | D163: 1 | E163: 1 | F163: 1 | G163: 1 | H163: 0 | I163: 0 | K163: ="#"&RIGHT("0"&DEC2HEX(B163*128+C163*64+D163*32+E163*16+F163*8+G163*4+H163*2+I163),2) -> #7C | O163: =IF(_xlfn.BITAND($X163,O$1),1,0) -> 0 | P163: 0 | Q163: 1 | R163: 1 | S163: 1 | T163: 0 | U163: 0 | V163: 0 | W163: 0 | X163: =VLOOKUP(W162,$Z$2:$AH$225,W163+2) -> 56 | Z163: 193 | AA163: 4 | AB163: 56 | AC163: 8 | AD163: 254 | AE163: 8 | AF163: 8 | AG163: 48 | AH163: 0
A164: 1 | B164: 1 | C164: 1 | D164: 1 | E164: 1 | F164: 1 | G164: 1 | H164: 1 | I164: 0 | K164: ="#"&RIGHT("0"&DEC2HEX(B164*128+C164*64+D164*32+E164*16+F164*8+G164*4+H164*2+I164),2) -> #FE | O164: 0 | P164: 1 | Q164: 0 | R164: 0 | S164: 0 | T164: 1 | U164: 0 | V164: 0 | W164: 1 | X164: =VLOOKUP(W162,$Z$2:$AH$225,W164+2) -> 68 | Z164: 194 | AA164: 0 | AB164: 82 | AC164: 82 | AD164: 82 | AE164: 2 | AF164: 4 | AG164: 24 | AH164: 0
A165: 2 | B165: 1 | C165: 1 | D165: 1 | E165: 1 | F165: 1 | G165: 1 | H165: 1 | I165: 0 | K165: #FE | O165: 0 | P165: 1 | Q165: 0 | R165: 0 | S165: 1 | T165: 1 | U165: 0 | V165: 0 | W165: 2 | X165: =VLOOKUP(W162,$Z$2:$AH$225,W165+2) -> 76 | Z165: 195 | AA165: 0 | AB165: 124 | AC165: 0 | AD165: 254 | AE165: 8 | AF165: 8 | AG165: 112 | AH165: 0
A166: 3 | B166: 1 | C166: 1 | D166: 1 | E166: 1 | F166: 1 | G166: 1 | H166: 1 | I166: 0 | K166: #FE | O166: 0 | P166: 1 | Q166: 0 | R166: 1 | S166: 0 | T166: 1 | U166: 0 | V166: 0 | W166: 3 | X166: =VLOOKUP(W162,$Z$2:$AH$225,W166+2) -> 84 | Z166: 196 | AA166: 64 | AB166: 64 | AC166: 64 | AD166: 112 | AE166: 76 | AF166: 64 | AG166: 64 | AH166: 0
A167: 4 | B167: 1 | C167: 1 | D167: 1 | E167: 1 | F167: 0 | G167: 0 | H167: 1 | I167: 0 | K167: #F2 | O167: 0 | P167: 1 | Q167: 1 | R167: 0 | S167: 0 | T167: 1 | U167: 0 | V167: 0 | W167: 4 | X167: =VLOOKUP(W162,$Z$2:$AH$225,W167+2) -> 100 | Z167: 197 | AA167: 0 | AB167: 8 | AC167: 254 | AD167: 8 | AE167: 8 | AF167: 8 | AG167: 112 | AH167: 0
A168: 5 | B168: 1 | C168: 1 | D168: 1 | E168: 1 | F168: 0 | G168: 1 | H168: 0 | I168: 0 | K168: #F4 | O168: 0 | P168: 1 | Q168: 0 | R168: 0 | S168: 0 | T168: 1 | U168: 0 | V168: 0 | W168: 5 | X168: =VLOOKUP(W162,$Z$2:$AH$225,W168+2) -> 68 | Z168: 198 | AA168: 0 | AB168: 0 | AC168: 124 | AD168: 0 | AE168: 0 | AF168: 0 | AG168: 254 | AH168: 0
A169: 6 | B169: 0 | C169: 1 | D169: 1 | E169: 1 | F169: 1 | G169: 0 | H169: 1 | I169: 0 | K169: #7A | O169: 0 | P169: 0 | Q169: 1 | R169: 1 | S169: 1 | T169: 0 | U169: 0 | V169: 0 | W169: 6 | X169: =VLOOKUP(W162,$Z$2:$AH$225,W169+2) -> 56 | Z169: 199 | AA169: 0 | AB169: 126 | AC169: 2 | AD169: 52 | AE169: 8 | AF169: 20 | AG169: 98 | AH169: 0
A170: 7 | B170: 0 | C170: 0 | D170: 0 | E170: 0 | F170: 0 | G170: 0 | H170: 0 | I170: 0 | K170: #00 | O170: 0 | P170: 0 | Q170: 0 | R170: 0 | S170: 0 | T170: 0 | U170: 0 | V170: 0 | W170: 7 | X170: =VLOOKUP(W162,$Z$2:$AH$225,W170+2) -> 0 | Z170: 200 | AA170: 16 | AB170: 126 | AC170: 2 | AD170: 4 | AE170: 24 | AF170: 118 | AG170: 16 | AH170: 0
Z171: 201 | AA171: 0 | AB171: 2 | AC171: 2 | AD171: 2 | AE171: 2 | AF171: 4 | AG171: 120 | AH171: 0
A172: =A162+1 -> 241 | B172: 0 | C172: 1 | D172: 2 | E172: 3 | F172: 4 | G172: 5 | H172: 6 | I172: 7 | K172: =cat(K173:K180,",",",") -> #FC,#FE,#FA,#FE,#FE,#FC,#F6,#00 | O172: 0 | P172: 1 | Q172: 2 | R172: 3 | S172: 4 | T172: 5 | U172: 6 | V172: 7 | W172: 49 | Z172: 202 | AA172: 0 | AB172: 40 | AC172: 40 | AD172: 68 | AE172: 68 | AF172: 130 | AG172: 130 | AH172: 0
A173: 0 | B173: 1 | C173: 1 | D173: 1 | E173: 1 | F173: 1 | G173: 1 | H173: 0 | I173: 0 | K173: ="#"&RIGHT("0"&DEC2HEX(B173*128+C173*64+D173*32+E173*16+F173*8+G173*4+H173*2+I173),2) -> #FC | O173: =IF(_xlfn.BITAND($X173,O$1),1,0) -> 0 | P173: 0 | Q173: 0 | R173: 1 | S173: 0 | T173: 0 | U173: 0 | V173: 0 | W173: 0 | X173: =VLOOKUP(W172,$Z$2:$AH$225,W173+2) -> 16 | Z173: 203 | AA173: 0 | AB173: 64 | AC173: 78 | AD173: 112 | AE173: 64 | AF173: 64 | AG173: 62 | AH173: 0
A174: 1 | B174: 1 | C174: 1 | D174: 1 | E174: 1 | F174: 1 | G174: 1 | H174: 1 | I174: 0 | K174: ="#"&RIGHT("0"&DEC2HEX(B174*128+C174*64+D174*32+E174*16+F174*8+G174*4+H174*2+I174),2) -> #FE | O174: 0 | P174: 0 | Q174: 1 | R174: 1 | S174: 0 | T174: 0 | U174: 0 | V174: 0 | W174: 1 | X174: =VLOOKUP(W172,$Z$2:$AH$225,W174+2) -> 48 | Z174: 204 | AA174: 0 | AB174: 126 | AC174: 2 | AD174: 2 | AE174: 2 | AF174: 4 | AG174: 56 | AH174: 0
A175: 2 | B175: 1 | C175: 1 | D175: 1 | E175: 1 | F175: 1 | G175: 0 | H175: 1 | I175: 0 | K175: #FA | O175: 0 | P175: 1 | Q175: 0 | R175: 1 | S175: 0 | T175: 0 | U175: 0 | V175: 0 | W175: 2 | X175: =VLOOKUP(W172,$Z$2:$AH$225,W175+2) -> 80 | Z175: 205 | AA175: 0 | AB175: 0 | AC175: 32 | AD175: 80 | AE175: 136 | AF175: 4 | AG175: 2 | AH175: 0
A176: 3 | B176: 1 | C176: 1 | D176: 1 | E176: 1 | F176: 1 | G176: 1 | H176: 1 | I176: 0 | K176: #FE | O176: 0 | P176: 0 | Q176: 0 | R176: 1 | S176: 0 | T176: 0 | U176: 0 | V176: 0 | W176: 3 | X176: =VLOOKUP(W172,$Z$2:$AH$225,W176+2) -> 16 | Z176: 206 | AA176: 0 | AB176: 16 | AC176: 254 | AD176: 16 | AE176: 84 | AF176: 84 | AG176: 146 | AH176: 0
A177: 4 | B177: 1 | C177: 1 | D177: 1 | E177: 1 | F177: 1 | G177: 1 | H177: 1 | I177: 0 | K177: #FE | O177: 0 | P177: 0 | Q177: 0 | R177: 1 | S177: 0 | T177: 0 | U177: 0 | V177: 0 | W177: 4 | X177: =VLOOKUP(W172,$Z$2:$AH$225,W177+2) -> 16 | Z177: 207 | AA177: 0 | AB177: 254 | AC177: 2 | AD177: 68 | AE177: 40 | AF177: 16 | AG177: 8 | AH177: 0
A178: 5 | B178: 1 | C178: 1 | D178: 1 | E178: 1 | F178: 1 | G178: 1 | H178: 0 | I178: 0 | K178: #FC | O178: 0 | P178: 0 | Q178: 0 | R178: 1 | S178: 0 | T178: 0 | U178: 0 | V178: 0 | W178: 5 | X178: =VLOOKUP(W172,$Z$2:$AH$225,W178+2) -> 16 | Z178: 208 | AA178: 0 | AB178: 112 | AC178: 14 | AD178: 112 | AE178: 14 | AF178: 112 | AG178: 14 | AH178: 0
A179: 6 | B179: 1 | C179: 1 | D179: 1 | E179: 1 | F179: 0 | G179: 1 | H179: 1 | I179: 0 | K179: #F6 | O179: 0 | P179: 1 | Q179: 1 | R179: 1 | S179: 1 | T179: 1 | U179: 0 | V179: 0 | W179: 6 | X179: =VLOOKUP(W172,$Z$2:$AH$225,W179+2) -> 124 | Z179: 209 | AA179: 0 | AB179: 16 | AC179: 16 | AD179: 32 | AE179: 36 | AF179: 66 | AG179: 254 | AH179: 0
A180: 7 | B180: 0 | C180: 0 | D180: 0 | E180: 0 | F180: 0 | G180: 0 | H180: 0 | I180: 0 | K180: #00 | O180: 0 | P180: 0 | Q180: 0 | R180: 0 | S180: 0 | T180: 0 | U180: 0 | V180: 0 | W180: 7 | X180: =VLOOKUP(W172,$Z$2:$AH$225,W180+2) -> 0 | Z180: 210 | AA180: 0 | AB180: 2 | AC180: 34 | AD180: 20 | AE180: 8 | AF180: 20 | AG180: 98 | AH180: 0
Z181: 211 | AA181: 0 | AB181: 124 | AC181: 32 | AD181: 254 | AE181: 32 | AF181: 32 | AG181: 30 | AH181: 0
A182: =A172+1 -> 242 | B182: 0 | C182: 1 | D182: 2 | E182: 3 | F182: 4 | G182: 5 | H182: 6 | I182: 7 | K182: =cat(K183:K190,",",",") -> #7C,#FE,#FA,#7C,#BE,#FE,#7C,#00 | O182: 0 | P182: 1 | Q182: 2 | R182: 3 | S182: 4 | T182: 5 | U182: 6 | V182: 7 | W182: 50 | Z182: 212 | AA182: 32 | AB182: 32 | AC182: 254 | AD182: 34 | AE182: 36 | AF182: 32 | AG182: 32 | AH182: 0
A183: 0 | B183: 0 | C183: 1 | D183: 1 | E183: 1 | F183: 1 | G183: 1 | H183: 0 | I183: 0 | K183: ="#"&RIGHT("0"&DEC2HEX(B183*128+C183*64+D183*32+E183*16+F183*8+G183*4+H183*2+I183),2) -> #7C | O183: =IF(_xlfn.BITAND($X183,O$1),1,0) -> 0 | P183: 0 | Q183: 1 | R183: 1 | S183: 1 | T183: 0 | U183: 0 | V183: 0 | W183: 0 | X183: 56 | Z183: 213 | AA183: 0 | AB183: 0 | AC183: 60 | AD183: 4 | AE183: 4 | AF183: 4 | AG183: 126 | AH183: 0
A184: 1 | B184: 1 | C184: 1 | D184: 1 | E184: 1 | F184: 1 | G184: 1 | H184: 1 | I184: 0 | K184: ="#"&RIGHT("0"&DEC2HEX(B184*128+C184*64+D184*32+E184*16+F184*8+G184*4+H184*2+I184),2) -> #FE | O184: 0 | P184: 1 | Q184: 0 | R184: 0 | S184: 0 | T184: 1 | U184: 0 | V184: 0 | W184: 1 | X184: 68 | Z184: 214 | AA184: 0 | AB184: 124 | AC184: 4 | AD184: 124 | AE184: 4 | AF184: 4 | AG184: 124 | AH184: 0
A185: 2 | B185: 1 | C185: 1 | D185: 1 | E185: 1 | F185: 1 | G185: 0 | H185: 1 | I185: 0 | K185: #FA | O185: 0 | P185: 0 | Q185: 0 | R185: 0 | S185: 0 | T185: 1 | U185: 0 | V185: 0 | W185: 2 | X185: 4 | Z185: 215 | AA185: 0 | AB185: 126 | AC185: 0 | AD185: 126 | AE185: 2 | AF185: 4 | AG185: 56 | AH185: 0
A186: 3 | B186: 0 | C186: 1 | D186: 1 | E186: 1 | F186: 1 | G186: 1 | H186: 0 | I186: 0 | K186: #7C | O186: 0 | P186: 0 | Q186: 0 | R186: 0 | S186: 0 | T186: 1 | U186: 0 | V186: 0 | W186: 3 | X186: =VLOOKUP(W182,$Z$2:$AH$225,W186+2) -> 4 | Z186: 216 | AA186: 0 | AB186: 68 | AC186: 68 | AD186: 68 | AE186: 4 | AF186: 8 | AG186: 48 | AH186: 0
A187: 4 | B187: 1 | C187: 0 | D187: 1 | E187: 1 | F187: 1 | G187: 1 | H187: 1 | I187: 0 | K187: #BE | O187: 0 | P187: 0 | Q187: 0 | R187: 1 | S187: 1 | T187: 0 | U187: 0 | V187: 0 | W187: 4 | X187: 24 | Z187: 217 | AA187: 0 | AB187: 80 | AC187: 80 | AD187: 80 | AE187: 82 | AF187: 148 | AG187: 152 | AH187: 0
A188: 5 | B188: 1 | C188: 1 | D188: 1 | E188: 1 | F188: 1 | G188: 1 | H188: 1 | I188: 0 | K188: #FE | O188: 0 | P188: 1 | Q188: 1 | R188: 0 | S188: 0 | T188: 0 | U188: 0 | V188: 0 | W188: 5 | X188: 96 | Z188: 218 | AA188: 0 | AB188: 32 | AC188: 32 | AD188: 34 | AE188: 36 | AF188: 40 | AG188: 48 | AH188: 0
A189: 6 | B189: 0 | C189: 1 | D189: 1 | E189: 1 | F189: 1 | G189: 1 | H189: 0 | I189: 0 | K189: #7C | O189: 0 | P189: 1 | Q189: 1 | R189: 1 | S189: 1 | T189: 1 | U189: 0 | V189: 0 | W189: 6 | X189: 124 | Z189: 219 | AA189: 0 | AB189: 126 | AC189: 66 | AD189: 66 | AE189: 66 | AF189: 66 | AG189: 126 | AH189: 0
A190: 7 | B190: 0 | C190: 0 | D190: 0 | E190: 0 | F190: 0 | G190: 0 | H190: 0 | I190: 0 | K190: #00 | O190: 0 | P190: 0 | Q190: 0 | R190: 0 | S190: 0 | T190: 0 | U190: 0 | V190: 0 | W190: 7 | X190: 0 | Z190: 220 | AA190: 0 | AB190: 126 | AC190: 66 | AD190: 66 | AE190: 2 | AF190: 4 | AG190: 56 | AH190: 0
Z191: 221 | AA191: 0 | AB191: 64 | AC191: 34 | AD191: 2 | AE191: 2 | AF191: 4 | AG191: 120 | AH191: 0
A192: =A182+1 -> 243 | B192: 0 | C192: 1 | D192: 2 | E192: 3 | F192: 4 | G192: 5 | H192: 6 | I192: 7 | K192: =cat(K193:K200,",",",") -> #FE,#FE,#FE,#FE,#FE,#FE,#7C,#00 | O192: 0 | P192: 1 | Q192: 2 | R192: 3 | S192: 4 | T192: 5 | U192: 6 | V192: 7 | W192: 51 | Z192: 222 | AA192: 16 | AB192: 72 | AC192: 32 | AD192: 0 | AE192: 0 | AF192: 0 | AG192: 0 | AH192: 0
A193: 0 | B193: 1 | C193: 1 | D193: 1 | E193: 1 | F193: 1 | G193: 1 | H193: 1 | I193: 0 | K193: ="#"&RIGHT("0"&DEC2HEX(B193*128+C193*64+D193*32+E193*16+F193*8+G193*4+H193*2+I193),2) -> #FE | O193: =IF(_xlfn.BITAND($X193,O$1),1,0) -> 0 | P193: 0 | Q193: 1 | R193: 1 | S193: 1 | T193: 0 | U193: 0 | V193: 0 | W193: 0 | X193: 56 | Z193: 223 | AA193: 112 | AB193: 80 | AC193: 112 | AD193: 0 | AE193: 0 | AF193: 0 | AG193: 0 | AH193: 0
A194: 1 | B194: 1 | C194: 1 | D194: 1 | E194: 1 | F194: 1 | G194: 1 | H194: 1 | I194: 0 | K194: ="#"&RIGHT("0"&DEC2HEX(B194*128+C194*64+D194*32+E194*16+F194*8+G194*4+H194*2+I194),2) -> #FE | O194: 0 | P194: 1 | Q194: 0 | R194: 0 | S194: 0 | T194: 1 | U194: 0 | V194: 0 | W194: 1 | X194: 68 | Z194: 224 | AA194: 24 | AB194: 56 | AC194: 120 | AD194: 255 | AE194: 255 | AF194: 120 | AG194: 56 | AH194: 24 | AJ194: 24 | AK194: 56 | AL194: 120 | AM194: 255 | AN194: 255 | AO194: 120 | AP194: 56 | AQ194: 24 | AS194: 0 | AT194: 8 | AU194: 24 | AV194: 63 | AW194: 127 | AX194: 63 | AY194: 24 | AZ194: 8 | BB194: 0 | BC194: 8 | BD194: 24 | BE194: 63 | BF194: 127 | BG194: 63 | BH194: 24 | BI194: 8
A195: 2 | B195: 1 | C195: 1 | D195: 1 | E195: 1 | F195: 1 | G195: 1 | H195: 1 | I195: 0 | K195: #FE | O195: 0 | P195: 0 | Q195: 0 | R195: 0 | S195: 0 | T195: 1 | U195: 0 | V195: 0 | W195: 2 | X195: 4 | Z195: 225 | AA195: 24 | AB195: 28 | AC195: 30 | AD195: 255 | AE195: 255 | AF195: 30 | AG195: 28 | AH195: 24 | AJ195: 24 | AK195: 28 | AL195: 30 | AM195: 255 | AN195: 255 | AO195: 30 | AP195: 28 | AQ195: 24 | AS195: 0 | AT195: 8 | AU195: 12 | AV195: 126 | AW195: 127 | AX195: 126 | AY195: 12 | AZ195: 8 | BB195: 0 | BC195: 8 | BD195: 12 | BE195: 126 | BF195: 127 | BG195: 126 | BH195: 12 | BI195: 8
A196: 3 | B196: 1 | C196: 1 | D196: 1 | E196: 1 | F196: 1 | G196: 1 | H196: 1 | I196: 0 | K196: #FE | O196: 0 | P196: 0 | Q196: 0 | R196: 1 | S196: 1 | T196: 0 | U196: 0 | V196: 0 | W196: 3 | X196: =VLOOKUP(W192,$Z$2:$AH$225,W196+2) -> 24 | Z196: 226 | AA196: 24 | AB196: 60 | AC196: 126 | AD196: 255 | AE196: 255 | AF196: 24 | AG196: 24 | AH196: 24 | AJ196: 24 | AK196: 60 | AL196: 126 | AM196: 255 | AN196: 255 | AO196: 24 | AP196: 24 | AQ196: 24 | AS196: 0 | AT196: 8 | AU196: 28 | AV196: 62 | AW196: 127 | AX196: 28 | AY196: 28 | AZ196: 28 | BB196: 0 | BC196: 8 | BD196: 28 | BE196: 62 | BF196: 127 | BG196: 28 | BH196: 28 | BI196: 28
A197: 4 | B197: 1 | C197: 1 | D197: 1 | E197: 1 | F197: 1 | G197: 1 | H197: 1 | I197: 0 | K197: #FE | O197: 0 | P197: 0 | Q197: 0 | R197: 0 | S197: 0 | T197: 1 | U197: 0 | V197: 0 | W197: 4 | X197: 4 | Z197: 227 | AA197: 24 | AB197: 24 | AC197: 24 | AD197: 255 | AE197: 255 | AF197: 126 | AG197: 60 | AH197: 24 | AJ197: 24 | AK197: 24 | AL197: 24 | AM197: 255 | AN197: 255 | AO197: 126 | AP197: 60 | AQ197: 24 | AS197: 0 | AT197: 28 | AU197: 28 | AV197: 28 | AW197: 127 | AX197: 62 | AY197: 28 | AZ197: 8 | BB197: 0 | BC197: 28 | BD197: 28 | BE197: 28 | BF197: 127 | BG197: 62 | BH197: 28 | BI197: 8
A198: 5 | B198: 1 | C198: 1 | D198: 1 | E198: 1 | F198: 1 | G198: 1 | H198: 1 | I198: 0 | K198: #FE | O198: 0 | P198: 1 | Q198: 0 | R198: 0 | S198: 0 | T198: 1 | U198: 0 | V198: 0 | W198: 5 | X198: 68 | Z198: 228 | AA198: 16 | AB198: 56 | AC198: 124 | AD198: 254 | AE198: 254 | AF198: 56 | AG198: 124 | AH198: 0 | AJ198: 16 | AK198: 56 | AL198: 124 | AM198: 254 | AN198: 254 | AO198: 56 | AP198: 124 | AQ198: 0 | AS198: 0 | AT198: 8 | AU198: 28 | AV198: 62 | AW198: 127 | AX198: 127 | AY198: 107 | AZ198: 28 | BB198: 0 | BC198: 8 | BD198: 28 | BE198: 62 | BF198: 127 | BG198: 127 | BH198: 107 | BI198: 28
A199: 6 | B199: 0 | C199: 1 | D199: 1 | E199: 1 | F199: 1 | G199: 1 | H199: 0 | I199: 0 | K199: #7C | O199: 0 | P199: 0 | Q199: 1 | R199: 1 | S199: 1 | T199: 0 | U199: 0 | V199: 0 | W199: 6 | X199: 56 | Z199: 229 | AA199: 0 | AB199: 108 | AC199: 254 | AD199: 254 | AE199: 124 | AF199: 56 | AG199: 16 | AH199: 0 | AJ199: 0 | AK199: 108 | AL199: 254 | AM199: 254 | AN199: 124 | AO199: 56 | AP199: 16 | AQ199: 0 | AS199: 0 | AT199: 34 | AU199: 119 | AV199: 127 | AW199: 127 | AX199: 62 | AY199: 28 | AZ199: 8 | BB199: 0 | BC199: 34 | BD199: 119 | BE199: 127 | BF199: 127 | BG199: 62 | BH199: 28 | BI199: 8
A200: 7 | B200: 0 | C200: 0 | D200: 0 | E200: 0 | F200: 0 | G200: 0 | H200: 0 | I200: 0 | K200: #00 | O200: 0 | P200: 0 | Q200: 0 | R200: 0 | S200: 0 | T200: 0 | U200: 0 | V200: 0 | W200: 7 | X200: 0 | Z200: 230 | AA200: 56 | AB200: 56 | AC200: 214 | AD200: 254 | AE200: 214 | AF200: 16 | AG200: 56 | AH200: 0 | AJ200: 56 | AK200: 56 | AL200: 214 | AM200: 254 | AN200: 214 | AO200: 16 | AP200: 56 | AQ200: 0 | AS200: 0 | AT200: 28 | AU200: 28 | AV200: 107 | AW200: 127 | AX200: 119 | AY200: 8 | AZ200: 28 | BB200: 0 | BC200: 28 | BD200: 28 | BE200: 107 | BF200: 127 | BG200: 119 | BH200: 8 | BI200: 28
... 1839 more rows
